Organisation Name (A),Department (B),Service Cat Label (C ),Purpose of Spend (D),Expenditure CIPFA Sub Group (E),Supplier (F),Supplier Reference (G),Pay Date (H),Transaction Number (I),Net Amount (J),Grant to VCSE? (K),Charity Number (L),Card Transaction (M),Irrecoverable VAT (N)
Pendle Borough Council,Operational Services,Transport Related Expense,Tprt : Repairs : General,3105,BALMERS GM LIMITED,A0000198,11/01/2024,OPS0338642,294.95,N,,N,N
Pendle Borough Council,Operational Services,Transport Related Expense,Tprt : Repairs : General,3105,BALMERS GM LIMITED,A0000198,18/01/2024,OPS0338833,94.64,N,,N,N
Pendle Borough Council,Operational Services,Supplies and Services,Expenditure : Materials,0002,BARNES JB LIMITED,A0000202,25/01/2024,OPS0338998,7.81,N,,N,N
Pendle Borough Council,Operational Services,Supplies and Services,Expenditure : Materials,0002,BARNES JB LIMITED,A0000202,25/01/2024,OPS0338997,28.66,N,,N,N
Pendle Borough Council,Operational Services,Premises Related Expense,Bldgs : R & M : Day To Day,2001,BARNES JB LIMITED,A0000202,04/01/2024,OPS0338564,19.9,N,,N,N
Pendle Borough Council,Operational Services,Transport Related Expense,Tprt : Repairs : General,3105,BARNES JB LIMITED,A0000202,18/01/2024,OPS0338629,101.36,N,,N,N
Pendle Borough Council,Operational Services,Transport Related Expense,Tprt : Repairs : General,3105,BARNES JB LIMITED,A0000202,04/01/2024,OPS0338603,148.85,N,,N,N
Pendle Borough Council,Operational Services,Transport Related Expense,Tprt : Repairs : General,3105,BARNES JB LIMITED,A0000202,04/01/2024,OPS0338604,479.95,N,,N,N
Pendle Borough Council,Operational Services,Premises Related Expense,Grounds : R & M : Day to Day : Routine,2101,BROXAP LIMITED,A0000236,04/01/2024,OPS0338597,290,N,,N,N
Pendle Borough Council,Operational Services,Premises Related Expense,Grounds : R & M : Day to Day : Routine,2101,BROXAP LIMITED,A0000236,04/01/2024,OPS0338597,300,N,,N,N
Pendle Borough Council,Operational Services,Premises Related Expense,Grounds : R & M : Day to Day : Routine,2101,BROXAP LIMITED,A0000236,04/01/2024,OPS0338597,300,N,,N,N
Pendle Borough Council,Operational Services,Premises Related Expense,Grounds : R & M : Day to Day : Routine,2101,BROXAP LIMITED,A0000236,04/01/2024,OPS0338597,300,N,,N,N
Pendle Borough Council,Operational Services,Premises Related Expense,Grounds : R & M : Day to Day : Routine,2101,BROXAP LIMITED,A0000236,04/01/2024,OPS0338597,300,N,,N,N
Pendle Borough Council,Operational Services,Premises Related Expense,Grounds : R & M : Day to Day : Routine,2101,BROXAP LIMITED,A0000236,04/01/2024,OPS0338597,600,N,,N,N
Pendle Borough Council,Operational Services,Capital Costs,Capital : Payments,CD14,BROXAP LIMITED,A0000236,11/01/2024,OPS0338639,1522,N,,N,N
Pendle Borough Council,Operational Services,,Paid in the Year,PD03,BROXAP LIMITED,A0000236,04/01/2024,OPS0338597,900,N,,N,N
Pendle Borough Council,Finance,,Precept Parish & T Council,0303,BARROWFORD PARISH COUNCIL,A0000239,04/01/2024,FIN0338490,51550,N,,N,N
Pendle Borough Council,Operational Services,Transport Related Expense,Hire of Plant,3502,BOC GASES LTD,A0000386,18/01/2024,OPS0338631,25.95,N,,N,N
Pendle Borough Council,Operational Services,Premises Related Expense,Grounds : R & M : Day to Day : Routine,2101,CB EXCAVATORS LTD,A0000396,18/01/2024,OPS0338633,1868,N,,N,N
Pendle Borough Council,Finance,Indirect Employee Expenses,Training,1211,BURNLEY COLLEGE,A0000428,11/01/2024,FIN0338740,1637,N,,N,N
Pendle Borough Council,Finance,Indirect Employee Expenses,Training,1211,CIPFA,A0000563,04/01/2024,FIN0338578,12.96,N,,N,N
Pendle Borough Council,Finance,Indirect Employee Expenses,Training,1211,CIPFA,A0000563,18/01/2024,FIN0338909,14.34,N,,N,N
Pendle Borough Council,"Planning, Building Control & Regulatory Services",Supplies and Services,Other Expenses,4705,MARTIN COLLINS JOINERY & GLAZING,A0000623,18/01/2024,PBC0338877,140,N,,N,N
Pendle Borough Council,Housing & Environmental Health,Capital Costs,Capital : Payments,CD14,MARTIN COLLINS JOINERY & GLAZING,A0000623,18/01/2024,HEH0338817,40,N,,N,N
Pendle Borough Council,Housing & Environmental Health,Transfer Payments,Storage & Homelessness prevention,6104,CAVALIER TAXIS,A0000638,11/01/2024,HEH0338687,511,N,,N,N
Pendle Borough Council,Finance,Capital Costs,Miscellaneous,CE4F,J DRIVER LTD,A0000884,18/01/2024,FIN0338910,3976.98,N,,N,N
Pendle Borough Council,Operational Services,Premises Related Expense,Grounds : R & M : Day to Day : Routine,2101,ENGINEERING & FOUNDRY SUPPLIES,A0001002,18/01/2024,OPS0338828,17.1,N,,N,N
Pendle Borough Council,Operational Services,Supplies and Services,Protective Clothing,4201,ENGINEERING & FOUNDRY SUPPLIES,A0001002,18/01/2024,OPS0338826,14.95,N,,N,N
Pendle Borough Council,Operational Services,Supplies and Services,Protective Clothing,4201,ENGINEERING & FOUNDRY SUPPLIES,A0001002,18/01/2024,OPS0338827,26.25,N,,N,N
Pendle Borough Council,Operational Services,Supplies and Services,Protective Clothing,4201,ENGINEERING & FOUNDRY SUPPLIES,A0001002,18/01/2024,OPS0338829,33.33,N,,N,N
Pendle Borough Council,Operational Services,Supplies and Services,Protective Clothing,4201,ENGINEERING & FOUNDRY SUPPLIES,A0001002,18/01/2024,OPS0338832,208,N,,N,N
Pendle Borough Council,Economic Growth,Supplies and Services,Protective Clothing,4201,ENGINEERING & FOUNDRY SUPPLIES,A0001002,25/01/2024,ECO0338888,206.83,N,,N,N
Pendle Borough Council,Operational Services,Supplies and Services,Other Expenses,4705,ENGINEERING & FOUNDRY SUPPLIES,A0001002,11/01/2024,OPS0338621,42.75,N,,N,N
Pendle Borough Council,Operational Services,,Stock : Purchases,PJ01,ENGINEERING & FOUNDRY SUPPLIES,A0001002,25/01/2024,OPS0338988,53.84,N,,N,N
Pendle Borough Council,Operational Services,,Stock : Purchases,PJ01,ENGINEERING & FOUNDRY SUPPLIES,A0001002,11/01/2024,OPS0338623,180,N,,N,N
Pendle Borough Council,Operational Services,,Stock : Purchases,PJ01,ENGINEERING & FOUNDRY SUPPLIES,A0001002,11/01/2024,OPS0338620,421.15,N,,N,N
Pendle Borough Council,Operational Services,,Stock : Purchases,pj01,ENGINEERING & FOUNDRY SUPPLIES,A0001002,18/01/2024,OPS0338851,584.09,N,,N,N
Pendle Borough Council,Finance,,Precept Parish & T Council,0303,EARBY TOWN COUNCIL,A0001004,04/01/2024,FIN0338494,34337.56,N,,N,N
Pendle Borough Council,Economic Growth,Supplies and Services,Other Expenses,4705,EARBY & KELBROOK SR CITIZEN WELFARE,A0001024,11/01/2024,ECO0338706,1500,N,700210,N,N
Pendle Borough Council,Economic Growth,Supplies and Services,Grant Funding,4737,EASTLANCS CHAMBER OF COMMERCE,A0001036,25/01/2024,ECO0339010,12985.08,N,,N,N
Pendle Borough Council,Economic Growth,Supplies and Services,Grant Funding,4737,EASTLANCS CHAMBER OF COMMERCE,A0001036,25/01/2024,ECO0339009,9190.03,N,,N,N
Pendle Borough Council,Human Resources,Supplies and Services,Legal Fees,4402,FORBES SOLICITORS,A0001117,18/01/2024,PER0338803,184,N,,N,N
Pendle Borough Council,Housing & Environmental Health,Supplies and Services,Other Expenses,4705,FERRET INFORMATION SYSTEMS LTD,A0001123,18/01/2024,HEH0338651,322,N,,N,N
Pendle Borough Council,Operational Services,Transport Related Expense,Tprt : Repairs : General,3105,FREIGHT TRANSPORT ASSOCIATION,A0001124,11/01/2024,OPS0338619,44,N,,N,N
Pendle Borough Council,Operational Services,Transport Related Expense,Tprt : Repairs : General,3105,GIBSONS GARDEN MACHINERY LTD,A0001201,11/01/2024,OPS0338647,292.31,N,,N,N
Pendle Borough Council,Operational Services,Premises Related Expense,Grounds : R & M : Day to Day : Routine,2101,JEWSON LIMITED,A0001323,04/01/2024,OPS0338595,57.97,N,,N,N
Pendle Borough Council,Operational Services,Premises Related Expense,Grounds : R & M : Day to Day : Routine,2101,JEWSON LIMITED,A0001323,18/01/2024,OPS0338636,70.19,N,,N,N
Pendle Borough Council,Operational Services,Premises Related Expense,Bldgs : R & M : Day To Day,2001,J HARGREAVES,A0001359,25/01/2024,OPS0339006,25,N,,N,N
Pendle Borough Council,Operational Services,Supplies and Services,EFM Materials,4004,LANLEE SUPPLIES LIMITED,A0001672,18/01/2024,OPS0338849,134.92,N,,N,N
Pendle Borough Council,Operational Services,Transport Related Expense,Tprt : Repairs : General,3105,DICK LEIGH,A0001675,18/01/2024,OPS0338630,28.5,N,,N,N
Pendle Borough Council,Operational Services,Transport Related Expense,Tprt : Repairs : General,3105,DICK LEIGH,A0001675,25/01/2024,OPS0338989,51.56,N,,N,N
Pendle Borough Council,Operational Services,Transport Related Expense,Tprt : Repairs : General,3105,DICK LEIGH,A0001675,25/01/2024,OPS0339000,66.29,N,,N,N
Pendle Borough Council,Operational Services,Transport Related Expense,Tprt : Repairs : General,3105,DICK LEIGH,A0001675,18/01/2024,OPS0338628,109.14,N,,N,N
Pendle Borough Council,Operational Services,Transport Related Expense,Tprt : Repairs : General,3105,DICK LEIGH,A0001675,25/01/2024,OPS0339001,130.53,N,,N,N
Pendle Borough Council,Operational Services,Transport Related Expense,Tprt : Repairs : General,3105,DICK LEIGH,A0001675,18/01/2024,OPS0338831,147.64,N,,N,N
Pendle Borough Council,Operational Services,Transport Related Expense,Tprt : Repairs : General,3105,DICK LEIGH,A0001675,25/01/2024,OPS0338999,206.66,N,,N,N
Pendle Borough Council,Operational Services,Transport Related Expense,Tprt : Repairs : General,3105,DICK LEIGH,A0001675,25/01/2024,OPS0339001,16.97,N,,N,N
Pendle Borough Council,Operational Services,Transport Related Expense,Tprt : Repairs : General,3105,DICK LEIGH,A0001675,18/01/2024,OPS0338630,124.92,N,,N,N
Pendle Borough Council,Operational Services,Supplies and Services,Protective Clothing,4201,DICK LEIGH,A0001675,18/01/2024,OPS0338831,800.5,N,,N,N
Pendle Borough Council,Operational Services,Capital Costs,Capital : Purchase,CD01,DICK LEIGH,A0001675,11/01/2024,OPS0338640,820,N,,N,N
Pendle Borough Council,Operational Services,Capital Costs,Capital : Purchase,CD01,DICK LEIGH,A0001675,11/01/2024,OPS0338641,2592,N,,N,N
Pendle Borough Council,Legal & Democratic Services,Supplies and Services,Search Fees,4404,LANCASHIRE COUNTY COUNCIL,A0001690,18/01/2024,LAD0338816,191.4,N,,N,N
Pendle Borough Council,Legal & Democratic Services,Capital Costs,Capital : Payments,CD14,LANCASHIRE COUNTY COUNCIL,A0001690,25/01/2024,LAD0339051,750,N,,N,N
Pendle Borough Council,Housing & Environmental Health,Capital Costs,Ren Grant : 1996 Act,CH22,LANCASHIRE COUNTY COUNCIL,A0001690,25/01/2024,HEH0338956,2116.38,N,,N,N
Pendle Borough Council,Directorate,Supplies and Services,Seminars etc All Costs,4601,LOCAL GOVERNMENT ASSOCIATION,A0001752,25/01/2024,DIR0338966,555.9,N,,N,N
Pendle Borough Council,Finance,Capital Costs,Capital : Payments,CD14,NORTH VALLEY FORGE,A0002019,05/01/2024,FIN4006785,-3357.5,N,,N,N
Pendle Borough Council,Finance,Capital Costs,Capital : Payments,CD14,NORTH VALLEY FORGE,A0002019,05/01/2024,FIN0338610,3357.5,N,,N,N
Pendle Borough Council,Operational Services,Premises Related Expense,Bldgs : R & M : Day To Day,2001,OPTION HYGIENE LIMITED,A0002063,25/01/2024,OPS0338992,108.54,N,,N,N
Pendle Borough Council,Operational Services,Supplies and Services,Other Expenses,4705,OPTION HYGIENE LIMITED,A0002063,04/01/2024,OPS0338569,322.5,N,,N,N
Pendle Borough Council,Finance,,Precept Parish & T Council,0303,OLD LAUND BOOTH PARISH COUNCIL,A0002067,04/01/2024,FIN0338501,3125,N,,N,N
Pendle Borough Council,Operational Services,Premises Related Expense,Bldgs : R & M : Day To Day,2001,POWER PIPES (PENDLE) LIMITED,A0002089,25/01/2024,OPS0338987,204.34,N,,N,N
Pendle Borough Council,Housing & Environmental Health,Supplies and Services,Postages,4501,ROYAL MAIL GROUP LIMITED,A0002281,11/01/2024,HEH0338614,20.8,N,,N,N
Pendle Borough Council,Housing & Environmental Health,Supplies and Services,Postages,4501,ROYAL MAIL GROUP LIMITED,A0002281,11/01/2024,HEH0338616,29.4,N,,N,N
Pendle Borough Council,Housing & Environmental Health,Supplies and Services,Postages,4501,ROYAL MAIL GROUP LIMITED,A0002281,11/01/2024,HEH0338616,44.85,N,,N,N
Pendle Borough Council,Housing & Environmental Health,Supplies and Services,Postages,4501,ROYAL MAIL GROUP LIMITED,A0002281,11/01/2024,HEH0338612,49.4,N,,N,N
Pendle Borough Council,Housing & Environmental Health,Supplies and Services,Postages,4501,ROYAL MAIL GROUP LIMITED,A0002281,25/01/2024,HEH0339044,66.67,N,,N,N
Pendle Borough Council,Housing & Environmental Health,Supplies and Services,Postages,4501,ROYAL MAIL GROUP LIMITED,A0002281,18/01/2024,HEH0338813,74.75,N,,N,N
Pendle Borough Council,Housing & Environmental Health,Supplies and Services,Postages,4501,ROYAL MAIL GROUP LIMITED,A0002281,11/01/2024,HEH0338615,81.9,N,,N,N
Pendle Borough Council,Housing & Environmental Health,Supplies and Services,Postages,4501,ROYAL MAIL GROUP LIMITED,A0002281,11/01/2024,HEH0338614,2.6,N,,N,N
Pendle Borough Council,Housing & Environmental Health,Supplies and Services,Postages,4501,ROYAL MAIL GROUP LIMITED,A0002281,11/01/2024,HEH0338612,7.8,N,,N,N
Pendle Borough Council,Housing & Environmental Health,Supplies and Services,Postages,4501,ROYAL MAIL GROUP LIMITED,A0002281,11/01/2024,HEH0338616,10.4,N,,N,N
Pendle Borough Council,Housing & Environmental Health,Supplies and Services,Postages,4501,ROYAL MAIL GROUP LIMITED,A0002281,25/01/2024,HEH0339044,11.05,N,,N,N
Pendle Borough Council,Housing & Environmental Health,Supplies and Services,Postages,4501,ROYAL MAIL GROUP LIMITED,A0002281,11/01/2024,HEH0338615,16.9,N,,N,N
Pendle Borough Council,Housing & Environmental Health,Supplies and Services,Postages,4501,ROYAL MAIL GROUP LIMITED,A0002281,18/01/2024,HEH0338813,44.2,N,,N,N
Pendle Borough Council,Housing & Environmental Health,Supplies and Services,Postages,4501,ROYAL MAIL GROUP LIMITED,A0002281,11/01/2024,HEH0338616,-3.92,N,,N,N
Pendle Borough Council,Housing & Environmental Health,Supplies and Services,Postages,4501,ROYAL MAIL GROUP LIMITED,A0002281,11/01/2024,HEH0338616,0.19,N,,N,N
Pendle Borough Council,Housing & Environmental Health,Supplies and Services,Postages,4501,ROYAL MAIL GROUP LIMITED,A0002281,25/01/2024,HEH0339044,1.39,N,,N,N
Pendle Borough Council,Housing & Environmental Health,Supplies and Services,Postages,4501,ROYAL MAIL GROUP LIMITED,A0002281,18/01/2024,HEH0338813,2.14,N,,N,N
Pendle Borough Council,Housing & Environmental Health,Supplies and Services,Postages,4501,ROYAL MAIL GROUP LIMITED,A0002281,11/01/2024,HEH0338612,2.39,N,,N,N
Pendle Borough Council,Housing & Environmental Health,Supplies and Services,Postages,4501,ROYAL MAIL GROUP LIMITED,A0002281,11/01/2024,HEH0338614,2.81,N,,N,N
Pendle Borough Council,Housing & Environmental Health,Supplies and Services,Postages,4501,ROYAL MAIL GROUP LIMITED,A0002281,11/01/2024,HEH0338615,6.58,N,,N,N
Pendle Borough Council,Housing & Environmental Health,Supplies and Services,Postages,4501,ROYAL MAIL GROUP LIMITED,A0002281,11/01/2024,HEH0338615,5.2,N,,N,N
Pendle Borough Council,Housing & Environmental Health,Supplies and Services,Postages,4501,ROYAL MAIL GROUP LIMITED,A0002281,18/01/2024,HEH0338813,5.2,N,,N,N
Pendle Borough Council,Housing & Environmental Health,Supplies and Services,Postages,4501,ROYAL MAIL GROUP LIMITED,A0002281,11/01/2024,HEH0338616,5.85,N,,N,N
Pendle Borough Council,Housing & Environmental Health,Supplies and Services,Postages,4501,ROYAL MAIL GROUP LIMITED,A0002281,11/01/2024,HEH0338612,4.71,N,,N,N
Pendle Borough Council,Housing & Environmental Health,Supplies and Services,Postages,4501,ROYAL MAIL GROUP LIMITED,A0002281,11/01/2024,HEH0338616,5.18,N,,N,N
Pendle Borough Council,Housing & Environmental Health,Supplies and Services,Postages,4501,ROYAL MAIL GROUP LIMITED,A0002281,11/01/2024,HEH0338614,6.6,N,,N,N
Pendle Borough Council,Housing & Environmental Health,Supplies and Services,Postages,4501,ROYAL MAIL GROUP LIMITED,A0002281,25/01/2024,HEH0339044,7.66,N,,N,N
Pendle Borough Council,Housing & Environmental Health,Supplies and Services,Postages,4501,ROYAL MAIL GROUP LIMITED,A0002281,11/01/2024,HEH0338615,8.01,N,,N,N
Pendle Borough Council,Housing & Environmental Health,Supplies and Services,Postages,4501,ROYAL MAIL GROUP LIMITED,A0002281,25/01/2024,HEH0339044,11.09,N,,N,N
Pendle Borough Council,Housing & Environmental Health,Supplies and Services,Postages,4501,ROYAL MAIL GROUP LIMITED,A0002281,18/01/2024,HEH0338813,18.46,N,,N,N
Pendle Borough Council,Housing & Environmental Health,Supplies and Services,Postages,4501,ROYAL MAIL GROUP LIMITED,A0002281,11/01/2024,HEH0338616,22.78,N,,N,N
Pendle Borough Council,Housing & Environmental Health,Supplies and Services,Postages,4501,ROYAL MAIL GROUP LIMITED,A0002281,11/01/2024,HEH0338615,41.42,N,,N,N
Pendle Borough Council,Housing & Environmental Health,Supplies and Services,Postages,4501,ROYAL MAIL GROUP LIMITED,A0002281,11/01/2024,HEH0338616,-39.18,N,,N,N
Pendle Borough Council,Housing & Environmental Health,Supplies and Services,Postages,4501,ROYAL MAIL GROUP LIMITED,A0002281,11/01/2024,HEH0338616,1.91,N,,N,N
Pendle Borough Council,Housing & Environmental Health,Supplies and Services,Postages,4501,ROYAL MAIL GROUP LIMITED,A0002281,25/01/2024,HEH0339044,13.91,N,,N,N
Pendle Borough Council,Housing & Environmental Health,Supplies and Services,Postages,4501,ROYAL MAIL GROUP LIMITED,A0002281,18/01/2024,HEH0338813,21.36,N,,N,N
Pendle Borough Council,Housing & Environmental Health,Supplies and Services,Postages,4501,ROYAL MAIL GROUP LIMITED,A0002281,11/01/2024,HEH0338612,24.03,N,,N,N
Pendle Borough Council,Housing & Environmental Health,Supplies and Services,Postages,4501,ROYAL MAIL GROUP LIMITED,A0002281,11/01/2024,HEH0338614,28.04,N,,N,N
Pendle Borough Council,Housing & Environmental Health,Supplies and Services,Postages,4501,ROYAL MAIL GROUP LIMITED,A0002281,11/01/2024,HEH0338615,65.78,N,,N,N
Pendle Borough Council,Housing & Environmental Health,Supplies and Services,Postages,4501,ROYAL MAIL GROUP LIMITED,A0002281,11/01/2024,HEH0338616,-43.55,N,,N,N
Pendle Borough Council,Housing & Environmental Health,Supplies and Services,Postages,4501,ROYAL MAIL GROUP LIMITED,A0002281,11/01/2024,HEH0338612,13.65,N,,N,N
Pendle Borough Council,Housing & Environmental Health,Supplies and Services,Postages,4501,ROYAL MAIL GROUP LIMITED,A0002281,11/01/2024,HEH0338614,82.55,N,,N,N
Pendle Borough Council,Housing & Environmental Health,Supplies and Services,Postages,4501,ROYAL MAIL GROUP LIMITED,A0002281,18/01/2024,HEH0338813,89.7,N,,N,N
Pendle Borough Council,Housing & Environmental Health,Supplies and Services,Postages,4501,ROYAL MAIL GROUP LIMITED,A0002281,25/01/2024,HEH0339044,95.55,N,,N,N
Pendle Borough Council,Housing & Environmental Health,Supplies and Services,Postages,4501,ROYAL MAIL GROUP LIMITED,A0002281,11/01/2024,HEH0338615,131.95,N,,N,N
Pendle Borough Council,Housing & Environmental Health,Supplies and Services,Postages,4501,ROYAL MAIL GROUP LIMITED,A0002281,11/01/2024,HEH0338612,1.75,N,,N,N
Pendle Borough Council,Housing & Environmental Health,Supplies and Services,Postages,4501,ROYAL MAIL GROUP LIMITED,A0002281,25/01/2024,HEH0339044,2.2,N,,N,N
Pendle Borough Council,Housing & Environmental Health,Supplies and Services,Postages,4501,ROYAL MAIL GROUP LIMITED,A0002281,18/01/2024,HEH0338813,2.56,N,,N,N
Pendle Borough Council,Housing & Environmental Health,Supplies and Services,Postages,4501,ROYAL MAIL GROUP LIMITED,A0002281,11/01/2024,HEH0338616,6.14,N,,N,N
Pendle Borough Council,Housing & Environmental Health,Supplies and Services,Postages,4501,ROYAL MAIL GROUP LIMITED,A0002281,11/01/2024,HEH0338616,9.9,N,,N,N
Pendle Borough Council,Housing & Environmental Health,Supplies and Services,Postages,4501,ROYAL MAIL GROUP LIMITED,A0002281,11/01/2024,HEH0338615,10.95,N,,N,N
Pendle Borough Council,Housing & Environmental Health,Supplies and Services,Postages,4501,ROYAL MAIL GROUP LIMITED,A0002281,11/01/2024,HEH0338614,-64.08,N,,N,N
Pendle Borough Council,Housing & Environmental Health,Supplies and Services,Postages,4501,ROYAL MAIL GROUP LIMITED,A0002281,11/01/2024,HEH0338612,2.67,N,,N,N
Pendle Borough Council,Housing & Environmental Health,Supplies and Services,Postages,4501,ROYAL MAIL GROUP LIMITED,A0002281,25/01/2024,HEH0339044,5.34,N,,N,N
Pendle Borough Council,Housing & Environmental Health,Supplies and Services,Postages,4501,ROYAL MAIL GROUP LIMITED,A0002281,11/01/2024,HEH0338616,8.01,N,,N,N
Pendle Borough Council,Housing & Environmental Health,Supplies and Services,Postages,4501,ROYAL MAIL GROUP LIMITED,A0002281,11/01/2024,HEH0338614,52.41,N,,N,N
Pendle Borough Council,Housing & Environmental Health,Supplies and Services,Postages,4501,ROYAL MAIL GROUP LIMITED,A0002281,11/01/2024,HEH0338615,93.45,N,,N,N
Pendle Borough Council,Housing & Environmental Health,Supplies and Services,Postages,4501,ROYAL MAIL GROUP LIMITED,A0002281,11/01/2024,HEH0338612,94.08,N,,N,N
Pendle Borough Council,Housing & Environmental Health,Supplies and Services,Postages,4501,ROYAL MAIL GROUP LIMITED,A0002281,18/01/2024,HEH0338813,141.7,N,,N,N
Pendle Borough Council,Housing & Environmental Health,Supplies and Services,Postages,4501,ROYAL MAIL GROUP LIMITED,A0002281,11/01/2024,HEH0338616,147.17,N,,N,N
Pendle Borough Council,Housing & Environmental Health,Supplies and Services,Postages,4501,ROYAL MAIL GROUP LIMITED,A0002281,11/01/2024,HEH0338615,186,N,,N,N
Pendle Borough Council,Housing & Environmental Health,Supplies and Services,Postages,4501,ROYAL MAIL GROUP LIMITED,A0002281,25/01/2024,HEH0339044,200.74,N,,N,N
Pendle Borough Council,Housing & Environmental Health,Supplies and Services,Postages,4501,ROYAL MAIL GROUP LIMITED,A0002281,18/01/2024,HEH0338813,4.72,N,,N,N
Pendle Borough Council,Housing & Environmental Health,Supplies and Services,Postages,4501,ROYAL MAIL GROUP LIMITED,A0002281,11/01/2024,HEH0338614,5.75,N,,N,N
Pendle Borough Council,Housing & Environmental Health,Supplies and Services,Postages,4501,ROYAL MAIL GROUP LIMITED,A0002281,11/01/2024,HEH0338612,7.38,N,,N,N
Pendle Borough Council,Housing & Environmental Health,Supplies and Services,Postages,4501,ROYAL MAIL GROUP LIMITED,A0002281,11/01/2024,HEH0338616,35.53,N,,N,N
Pendle Borough Council,Housing & Environmental Health,Supplies and Services,Postages,4501,ROYAL MAIL GROUP LIMITED,A0002281,11/01/2024,HEH0338612,37.37,N,,N,N
Pendle Borough Council,Housing & Environmental Health,Supplies and Services,Postages,4501,ROYAL MAIL GROUP LIMITED,A0002281,25/01/2024,HEH0339044,49.83,N,,N,N
Pendle Borough Council,Housing & Environmental Health,Supplies and Services,Postages,4501,ROYAL MAIL GROUP LIMITED,A0002281,11/01/2024,HEH0338615,58.35,N,,N,N
Pendle Borough Council,Housing & Environmental Health,Supplies and Services,Postages,4501,ROYAL MAIL GROUP LIMITED,A0002281,18/01/2024,HEH0338813,61.31,N,,N,N
Pendle Borough Council,Finance,,Precept Parish & T Council,0303,REEDLEY HALLOWS PARISH COUNCIL,A0002283,04/01/2024,FIN0338502,2994.09,N,,N,N
Pendle Borough Council,Operational Services,Transport Related Expense,Tprt : Annual Hire Charge,3601,STANLEY BROTHERS (TIPPERS) LTD,A0002422,18/01/2024,OPS0338844,2090,N,,N,N
Pendle Borough Council,Operational Services,Transport Related Expense,Tprt : Annual Hire Charge,3601,STANLEY BROTHERS (TIPPERS) LTD,A0002422,18/01/2024,OPS0338845,2420,N,,N,N
Pendle Borough Council,Finance,Capital Costs,Capital : Payments,CD14,SOVEREIGN GROUP LTD,A0002524,18/01/2024,FIN0338922,871.46,N,,N,N
Pendle Borough Council,Finance,Capital Costs,Capital : Payments,CD14,SOVEREIGN GROUP LTD,A0002524,18/01/2024,EST0338919,17833.81,N,,N,N
Pendle Borough Council,Property Services,Premises Related Expense,Bldgs : R & M : Day To Day,2001,T & F STEEL DESIGNS LTD,A0002627,25/01/2024,EST0339023,180,N,,N,N
Pendle Borough Council,Property Services,Premises Related Expense,Bldgs : R & M : Day To Day,2001,T & F STEEL DESIGNS LTD,A0002627,25/01/2024,EST0339023,570,N,,N,N
Pendle Borough Council,Policy & Commissioning,Supplies and Services,Publicity & advertisement,4704,TRISTAR PRINTERS LTD,A0002731,11/01/2024,POL0338551,35,N,,N,N
Pendle Borough Council,Policy & Commissioning,Supplies and Services,Publicity & advertisement,4704,TRISTAR PRINTERS LTD,A0002731,11/01/2024,POL0338549,245,N,,N,N
Pendle Borough Council,Policy & Commissioning,Supplies and Services,Publicity & advertisement,4704,TRISTAR PRINTERS LTD,A0002731,11/01/2024,POL0338552,765,N,,N,N
Pendle Borough Council,Policy & Commissioning,Supplies and Services,Publicity & advertisement,4704,TRISTAR PRINTERS LTD,A0002731,11/01/2024,POL0338548,936,N,,N,N
Pendle Borough Council,Policy & Commissioning,Supplies and Services,Publicity & advertisement,4704,TRISTAR PRINTERS LTD,A0002731,18/01/2024,POL0338718,3050,N,,N,N
Pendle Borough Council,Housing & Environmental Health,Supplies and Services,Other Expenses,4705,TRISTAR PRINTERS LTD,A0002731,11/01/2024,HEH0338519,73,N,,N,N
Pendle Borough Council,Policy & Commissioning,Supplies and Services,Children`s holiday activities,4716,TRISTAR PRINTERS LTD,A0002731,11/01/2024,POL0338550,893,N,,N,N
Pendle Borough Council,Operational Services,Agency Staff,Emp : Agency Wages,1004,DHRB LIMITED T/A DRIVER HIRE (45680),A0003556,18/01/2024,OPS0338838,158.97,N,,N,N
Pendle Borough Council,Operational Services,Agency Staff,Emp : Agency Wages,1004,DHRB LIMITED T/A DRIVER HIRE (45680),A0003556,04/01/2024,OPS0338576,448.03,N,,N,N
Pendle Borough Council,Operational Services,Agency Staff,Emp : Agency Wages,1004,DHRB LIMITED T/A DRIVER HIRE (45680),A0003556,18/01/2024,OPS0338834,549.16,N,,N,N
Pendle Borough Council,Operational Services,Agency Staff,Emp : Agency Wages,1004,DHRB LIMITED T/A DRIVER HIRE (45680),A0003556,18/01/2024,OPS0338834,390.18,N,,N,N
Pendle Borough Council,Operational Services,Agency Staff,Emp : Agency Wages,1004,DHRB LIMITED T/A DRIVER HIRE (45680),A0003556,04/01/2024,OPS0338576,1112.83,N,,N,N
Pendle Borough Council,Operational Services,Agency Staff,Emp : Agency Wages,1004,DHRB LIMITED T/A DRIVER HIRE (45680),A0003556,18/01/2024,OPS0338838,1156.09,N,,N,N
Pendle Borough Council,Operational Services,Premises Related Expense,Grounds : R & M : Day to Day : Routine,2101,WICKSTEED LEISURE LTD,A0004748,04/01/2024,OPS0338593,1287.55,N,,N,N
Pendle Borough Council,Operational Services,Transport Related Expense,Tprt : Repairs : General,3105,F G ROWLAND LIMITED,A0006489,11/01/2024,OPS0338643,575.94,N,,N,N
Pendle Borough Council,Operational Services,Transport Related Expense,Tprt : Repairs : General,3105,F G ROWLAND LIMITED,A0006489,04/01/2024,OPS0338605,65,N,,N,N
Pendle Borough Council,Operational Services,Transport Related Expense,Tprt : Repairs : General,3105,F G ROWLAND LIMITED,A0006489,11/01/2024,OPS0338644,43.71,N,,N,N
Pendle Borough Council,Legal & Democratic Services,Indirect Employee Expenses,Staff Refreshments,1261,PHILIP SANDERSON,A0006611,11/01/2024,LAD0338648,21.72,N,,N,N
Pendle Borough Council,Legal & Democratic Services,Supplies and Services,Hospitality,4611,PHILIP SANDERSON,A0006611,11/01/2024,LAD0338648,21.72,N,,N,N
Pendle Borough Council,Legal & Democratic Services,Indirect Employee Expenses,Emp : Practising Certificates,1201,CILEX  REGULATION LIMITED,A0007913,25/01/2024,LAD0339055,367,N,,N,N
Pendle Borough Council,Property Services,Indirect Employee Expenses,Staff Refreshments,1261,VENDA VALET (MACHINES) LTD,A0009649,11/01/2024,EST0338720,65,N,,N,N
Pendle Borough Council,Housing & Environmental Health,Supplies and Services,Other Expenses,4705,COLNE OPEN DOOR CENTRE,A0009836,18/01/2024,HEH0338668,399,N,1121144,N,N
Pendle Borough Council,Policy & Commissioning,Supplies and Services,Children`s holiday activities,4716,PENDLE LEISURE LIMITED,A0012961,18/01/2024,POL0338654,59.55,N,XR43029,N,N
Pendle Borough Council,Policy & Commissioning,Supplies and Services,Children`s holiday activities,4716,PENDLE LEISURE LIMITED,A0012961,25/01/2024,POL0338957,90.75,N,XR43029,N,N
Pendle Borough Council,Policy & Commissioning,Supplies and Services,Children`s holiday activities,4716,PENDLE LEISURE LIMITED,A0012961,11/01/2024,POL0338553,168.9,N,XR43029,N,N
Pendle Borough Council,Policy & Commissioning,Supplies and Services,Grant Funding,4737,PENDLE LEISURE LIMITED,A0012961,11/01/2024,POL0338473,250,N,XR43029,N,N
Pendle Borough Council,Operational Services,Supplies and Services,Sub-Contractors,4007,ORCHARD RECYCLING SERVICE,A0015803,25/01/2024,OPS0338978,2457,N,,N,N
Pendle Borough Council,Operational Services,Supplies and Services,Sub-Contractors,4007,ORCHARD RECYCLING SERVICE,A0015803,11/01/2024,OPS0338626,2637,N,,N,N
Pendle Borough Council,Operational Services,Supplies and Services,Sub-Contractors,4007,ORCHARD RECYCLING SERVICE,A0015803,04/01/2024,OPS0338573,2781,N,,N,N
Pendle Borough Council,Operational Services,Supplies and Services,Sub-Contractors,4007,ORCHARD RECYCLING SERVICE,A0015803,18/01/2024,OPS0338841,3123,N,,N,N
Pendle Borough Council,Operational Services,Transport Related Expense,Diesel Oil,3202,CROWN OIL LIMITED,A0019019,25/01/2024,OPS0338984,1062.19,N,,N,N
Pendle Borough Council,Operational Services,Transport Related Expense,Diesel Oil,3202,CROWN OIL LIMITED,A0019019,04/01/2024,OPS0338572,1164.75,N,,N,N
Pendle Borough Council,Operational Services,Transport Related Expense,Diesel Oil,3202,CROWN OIL LIMITED,A0019019,25/01/2024,OPS0338984,1062.19,N,,N,N
Pendle Borough Council,Operational Services,Transport Related Expense,Diesel Oil,3202,CROWN OIL LIMITED,A0019019,04/01/2024,OPS0338572,1164.75,N,,N,N
Pendle Borough Council,Operational Services,Transport Related Expense,Diesel Oil,3202,CROWN OIL LIMITED,A0019019,25/01/2024,OPS0338984,1062.19,N,,N,N
Pendle Borough Council,Operational Services,Transport Related Expense,Diesel Oil,3202,CROWN OIL LIMITED,A0019019,04/01/2024,OPS0338572,1164.75,N,,N,N
Pendle Borough Council,Operational Services,Transport Related Expense,Diesel Oil,3202,CROWN OIL LIMITED,A0019019,25/01/2024,OPS0338984,1062.18,N,,N,N
Pendle Borough Council,Operational Services,Transport Related Expense,Diesel Oil,3202,CROWN OIL LIMITED,A0019019,04/01/2024,OPS0338572,1164.75,N,,N,N
Pendle Borough Council,Operational Services,Transport Related Expense,Hire of Plant,3502,CROWN OIL LIMITED,A0019019,25/01/2024,OPS0338995,1914.26,N,,N,N
Pendle Borough Council,Housing & Environmental Health,Capital Costs,Ren Grant : 1996 Act,CH22,STANNAH LIFT SERVICES LTD,A0021089,18/01/2024,HEH0338799,3060,N,,N,N
Pendle Borough Council,Housing & Environmental Health,Capital Costs,Ren Grant : 1996 Act,CH22,STANNAH LIFT SERVICES LTD,A0021089,18/01/2024,HEH0338874,3293,N,,N,N
Pendle Borough Council,Operational Services,Supplies and Services,Sub-Contractors,4007,ASPEN VALLEY KENNELS & CATTERY,A0022106,18/01/2024,OPS0338850,840,N,,N,N
Pendle Borough Council,Operational Services,Supplies and Services,Other Expenses,4705,ASPEN VALLEY KENNELS & CATTERY,A0022106,18/01/2024,OPS0338850,994.86,N,,N,N
Pendle Borough Council,Housing & Environmental Health,Supplies and Services,Subscriptions & Donations,4706,LANGUAGE LINE LIMITED,A0025582,18/01/2024,HEH0338876,8,N,,N,N
Pendle Borough Council,Housing & Environmental Health,Supplies and Services,Other Expenses,4705,GRADKO INTERNATIONAL LTD,A0025806,18/01/2024,HEH0338815,9,N,,N,N
Pendle Borough Council,Housing & Environmental Health,Supplies and Services,Other Expenses,4705,GRADKO INTERNATIONAL LTD,A0025806,18/01/2024,HEH0338814,211.25,N,,N,N
Pendle Borough Council,Property Services,Premises Related Expense,Service Charge,2702,BARNFIELD INVESTMENT PROPERTIES LTD,A0026595,25/01/2024,EST0339020,2484.13,N,,N,N
Pendle Borough Council,Economic Growth,Premises Related Expense,Bldgs : R & M : Day To Day,2001,LITE,A0040032,11/01/2024,ECO0338709,895,N,,N,N
Pendle Borough Council,Property Services,Premises Related Expense,Electricity,2203,BRITISH GAS BUSINESS,A0040331,04/01/2024,EST0338521,59.58,N,,N,N
Pendle Borough Council,Housing & Environmental Health,Supplies and Services,Mobile Phones,4508,VODAFONE LTD,A0040344,11/01/2024,HEH0338613,269,N,,N,N
Pendle Borough Council,Housing & Environmental Health,Supplies and Services,Mobile Phones,4508,VODAFONE LTD,A0040344,25/01/2024,HEH0339053,269,N,,N,N
Pendle Borough Council,Directorate,Supplies and Services,EFM : Photocopiers,4001,CANON (UK) LIMITED,A0040400,25/01/2024,DIR0339052,384.43,N,,N,N
Pendle Borough Council,Housing & Environmental Health,Supplies and Services,EFM : Photocopiers,4001,CANON (UK) LIMITED,A0040400,25/01/2024,HEH0339045,24.42,N,,N,N
Pendle Borough Council,Housing & Environmental Health,Supplies and Services,EFM : Photocopiers,4001,CANON (UK) LIMITED,A0040400,25/01/2024,HEH0339047,324.25,N,,N,N
Pendle Borough Council,Housing & Environmental Health,Supplies and Services,EFM : Photocopiers,4001,CANON (UK) LIMITED,A0040400,25/01/2024,HEH0339046,381.63,N,,N,N
Pendle Borough Council,Human Resources,Indirect Employee Expenses,Recruitment,1221,SOLACE IN BUSINESS LIMITED,A0040401,18/01/2024,PER0338807,5830.65,N,,N,N
Pendle Borough Council,Property Services,Premises Related Expense,Bldgs : R & M : Day To Day,2001,PENNINE FIRE & SAFETY LTD,A0040931,25/01/2024,EST0339021,350,N,,N,N
Pendle Borough Council,Property Services,Premises Related Expense,Bldgs : R & M : Day To Day,2001,PENNINE FIRE & SAFETY LTD,A0040931,18/01/2024,EST0338892,244.5,N,,N,N
Pendle Borough Council,Legal & Democratic Services,Supplies and Services,Printing & Stationery,4301,CIVICA ELECTION SERVICES,A0041321,18/01/2024,LAD0338812,526.37,N,,N,N
Pendle Borough Council,Legal & Democratic Services,Supplies and Services,Printing & Stationery,4301,CIVICA ELECTION SERVICES,A0041321,18/01/2024,LAD0338818,2183.73,N,,N,N
Pendle Borough Council,Legal & Democratic Services,Supplies and Services,Postages,4501,CIVICA ELECTION SERVICES,A0041321,18/01/2024,LAD0338811,3559.74,N,,N,N
Pendle Borough Council,Property Services,Capital Costs,Capital : Payments,CD14,CASSIDY & ASHTON,A0042014,18/01/2024,EST0338893,15187.5,N,,N,N
Pendle Borough Council,Policy & Commissioning,Supplies and Services,Subscriptions & Donations,4706,COUNCIL FOR VOLUNTARY SERVICE,A0042503,18/01/2024,POL0338798,5000,N,1062446,N,N
Pendle Borough Council,Finance,,Precept Parish & T Council,0303,ROUGHLEE BOOTH PARISH COUNCIL,A0042922,04/01/2024,FIN0338503,2122.81,N,,N,N
Pendle Borough Council,Operational Services,Transport Related Expense,Tprt : Repairs : General,3105, J RUSHTON,A0043864,18/01/2024,OPS0338635,80,N,,N,N
Pendle Borough Council,Economic Growth,Supplies and Services,Other Expenses,4705,MARKETING LANCASHIRE LIMITED,A0045273,25/01/2024,ECO0339016,2500,N,,N,N
Pendle Borough Council,Economic Growth,Supplies and Services,Subscriptions & Donations,4706,MARKETING LANCASHIRE LIMITED,A0045273,25/01/2024,ECO0339016,3900,N,,N,N
Pendle Borough Council,Property Services,Premises Related Expense,Electricity,2203,NPOWER,A0048483,11/01/2024,EST0338719,980.2,N,,N,N
Pendle Borough Council,Property Services,Capital Costs,Capital:Relocation Payments,CD04,NPOWER,A0048483,25/01/2024,EST0339026,331.62,N,,N,N
Pendle Borough Council,Operational Services,Premises Related Expense,Bldgs : R & M : Day To Day,2001,NATIONAL ASSOC OF MEMORIAL MASONS,A0050779,18/01/2024,OPS0338634,220,N,,N,N
Pendle Borough Council,Operational Services,Transport Related Expense,Tyres,3204,ROSSENDALE VULCANISING (SALES LTD),A0051239,11/01/2024,OPS0338646,78,N,,N,N
Pendle Borough Council,Operational Services,Transport Related Expense,Tyres,3204,ROSSENDALE VULCANISING (SALES LTD),A0051239,11/01/2024,OPS0338646,22,N,,N,N
Pendle Borough Council,Human Resources,Indirect Employee Expenses,Emp : Medical Expenses,1236,LIBERATA UK LTD,A0051618,18/01/2024,PER0338801,20,N,,N,N
Pendle Borough Council,Finance,Premises Related Expense,Rents,2301,LIBERATA UK LTD,A0051618,11/01/2024,FIN0338741,514.83,N,,N,N
Pendle Borough Council,Finance,Agency Costs,Liberata U/C,5303,LIBERATA UK LTD,A0051618,11/01/2024,FIN0338742,6191.67,N,,N,N
Pendle Borough Council,Finance,Agency Costs,Liberata U/C,5303,LIBERATA UK LTD,A0051618,11/01/2024,FIN0338742,39088.32,N,,N,N
Pendle Borough Council,Finance,Agency Costs,Liberata U/C,5303,LIBERATA UK LTD,A0051618,11/01/2024,FIN0338742,29281.06,N,,N,N
Pendle Borough Council,Finance,Agency Costs,Liberata U/C,5303,LIBERATA UK LTD,A0051618,11/01/2024,FIN0338742,87929.31,N,,N,N
Pendle Borough Council,Finance,Agency Costs,Liberata U/C,5303,LIBERATA UK LTD,A0051618,11/01/2024,FIN0338742,61549.46,N,,N,N
Pendle Borough Council,Finance,Agency Costs,Liberata U/C,5303,LIBERATA UK LTD,A0051618,11/01/2024,FIN0338742,94565.45,N,,N,N
Pendle Borough Council,Finance,Agency Costs,Liberata U/C,5303,LIBERATA UK LTD,A0051618,11/01/2024,FIN0338742,120487.8,N,,N,N
Pendle Borough Council,Economic Growth,Capital Costs,Capital : Salaries,CD13,LIBERATA UK LTD,A0051618,11/01/2024,ECO0338686,814.6,N,,N,N
Pendle Borough Council,Economic Growth,Capital Costs,Capital : Salaries,CD13,LIBERATA UK LTD,A0051618,11/01/2024,ECO0338685,2420.13,N,,N,N
Pendle Borough Council,Policy & Commissioning,Capital Costs,Capital : Salaries,CD13,LIBERATA UK LTD,A0051618,11/01/2024,POL0338556,3947.83,N,,N,N
Pendle Borough Council,Housing & Environmental Health,Capital Costs,Ren Grant : 1996 Act,CH22,LIBERATA UK LTD,A0051618,25/01/2024,HEH0339043,3698.4,N,,N,N
Pendle Borough Council,Property Services,Premises Related Expense,Electricity,2203,SOUTHERN ELECTRIC,A0051726,11/01/2024,EST0338723,374.52,N,,N,N
Pendle Borough Council,Operational Services,Premises Related Expense,Grounds : R & M : Day to Day : Routine,2101,ARCOL ENGINEERING LTD,A0052060,04/01/2024,OPS0338602,1850,N,,N,N
Pendle Borough Council,Operational Services,Supplies and Services,Other Expenses,4705,IPL PLASTICS (UK) LIMITED,A0052535,11/01/2024,OPS0338606,950,N,,N,N
Pendle Borough Council,Operational Services,Supplies and Services,Other Expenses,4705,IPL PLASTICS (UK) LIMITED,A0052535,11/01/2024,OPS0338606,1675,N,,N,N
Pendle Borough Council,Operational Services,Supplies and Services,Other Expenses,4705,IPL PLASTICS (UK) LIMITED,A0052535,11/01/2024,OPS0338607,5700,N,,N,N
Pendle Borough Council,Operational Services,Supplies and Services,Other Expenses,4705,IPL PLASTICS (UK) LIMITED,A0052535,11/01/2024,OPS0338607,5700,N,,N,N
Pendle Borough Council,Operational Services,Supplies and Services,Other Expenses,4705,IPL PLASTICS (UK) LIMITED,A0052535,11/01/2024,OPS0338606,8370,N,,N,N
Pendle Borough Council,Operational Services,Transport Related Expense,Tprt : Repairs : General,3105,FLEET STREET GARAGE LIMITED,A0054291,18/01/2024,OPS0338825,25,N,,N,N
Pendle Borough Council,Operational Services,Transport Related Expense,Tprt : Repairs : General,3105,HYDRAIR,A0056976,25/01/2024,OPS0339004,31.76,N,,N,N
Pendle Borough Council,Operational Services,Transport Related Expense,Tprt : Repairs : General,3105,HYDRAIR,A0056976,25/01/2024,OPS0339003,72.57,N,,N,N
Pendle Borough Council,Economic Growth,Supplies and Services,Other Expenses,4705,A BINNS & CO,A0057121,11/01/2024,ECO0338698,315,N,,N,N
Pendle Borough Council,Legal & Democratic Services,Supplies and Services,EFM : Office and computer equipment,4002,CIVICA UK LIMITED,A0057596,11/01/2024,LAD0338546,6116.1,N,,N,N
Pendle Borough Council,Operational Services,Premises Related Expense,Bldgs : R & M : Day To Day,2001,CHUBB FIRE & SECURITY LTD,A0057603,25/01/2024,OPS0338905,120.98,N,,N,N
Pendle Borough Council,Operational Services,Premises Related Expense,Bldgs : R & M : Day To Day,2001,P LEE WASTE OIL LIMTED,A0058412,18/01/2024,OPS0338836,820,N,,N,N
Pendle Borough Council,Operational Services,Premises Related Expense,Bldgs : R & M : Day To Day,2001,P LEE WASTE OIL LIMTED,A0058412,25/01/2024,OPS0338982,820,N,,N,N
Pendle Borough Council,Operational Services,Transport Related Expense,Tprt : Repairs : General,3105,UNITED UTILITIES,A0059246,11/01/2024,OPS0338622,36.69,N,,N,N
Pendle Borough Council,Operational Services,Transport Related Expense,Tprt : Repairs : General,3105,UNITED UTILITIES,A0059246,11/01/2024,OPS0338622,36.69,N,,N,N
Pendle Borough Council,Economic Growth,Agency Costs,Lancashire C C,5102,NSL LIMITED,A0059256,11/01/2024,ECO0338713,2300,N,,N,N
Pendle Borough Council,"Planning, Building Control & Regulatory Services",Supplies and Services,Adverts : Statutory Notice,4702,NATIONAL WORLD PUBLISHING LTD,A0059640,18/01/2024,PBC0338390,260.01,N,,N,N
Pendle Borough Council,"Planning, Building Control & Regulatory Services",Supplies and Services,Adverts : Statutory Notice,4702,NATIONAL WORLD PUBLISHING LTD,A0059640,18/01/2024,PBC0338879,260.01,N,,N,N
Pendle Borough Council,"Planning, Building Control & Regulatory Services",Supplies and Services,Adverts : Statutory Notice,4702,NATIONAL WORLD PUBLISHING LTD,A0059640,18/01/2024,PBC0338878,390.01,N,,N,N
Pendle Borough Council,"Planning, Building Control & Regulatory Services",Supplies and Services,Adverts : Statutory Notice,4702,NATIONAL WORLD PUBLISHING LTD,A0059640,18/01/2024,PBC0338558,442.02,N,,N,N
Pendle Borough Council,Housing & Environmental Health,Transport Related Expense,Tprt : Repairs : General,3105,HILL VIEW (PRIVATE) HOTEL,A0059754,11/01/2024,HEH0338694,980,N,,N,N
Pendle Borough Council,Housing & Environmental Health,Transport Related Expense,Tprt : Repairs : General,3105,HILL VIEW (PRIVATE) HOTEL,A0059754,11/01/2024,HEH0338693,19460,N,,N,N
Pendle Borough Council,Operational Services,Premises Related Expense,Bldgs : R & M : Day To Day,2001,DETERTECH UK LIMITED,A0060912,18/01/2024,OPS0338824,175,N,,N,N
Pendle Borough Council,Operational Services,Supplies and Services,EFM Materials,4004,CONTAINER CARE SOLUTIONS LIMITED,A0061112,18/01/2024,OPS0338843,1166.67,N,,N,N
Pendle Borough Council,Finance,Capital Costs,Miscellaneous,CE4F,PENDLE ENTERPRISE & REGENERATION LTD,A0061803,04/01/2024,FIN0338580,1535.85,N,,N,N
Pendle Borough Council,Finance,,Precept Parish & T Council,0303,LANESHAWBRIDGE PARISH COUNCIL,A0062284,04/01/2024,FIN0338499,11352.43,N,,N,N
Pendle Borough Council,Finance,,Precept Parish & T Council,0303,TRAWDEN FOREST PARISH COUNCIL,A0062286,04/01/2024,FIN0338505,25000,N,,N,N
Pendle Borough Council,Property Services,Premises Related Expense,Bldgs : R & M : Day To Day,2001,KEYPLUS SECURITY LIMITED,A0062723,25/01/2024,EST0339022,26.41,N,,N,N
Pendle Borough Council,Property Services,Premises Related Expense,Bldgs : R & M : Day To Day,2001,KEYPLUS SECURITY LIMITED,A0062723,25/01/2024,EST0339022,44.85,N,,N,N
Pendle Borough Council,Operational Services,Premises Related Expense,Bldgs : R & M : Day To Day,2001,BOUNCEBACK SAFETY SERVICES LTD,A0063002,25/01/2024,OPS0338994,212,N,,N,N
Pendle Borough Council,Operational Services,Premises Related Expense,Grounds : R & M : Day to Day : Routine,2101,BOUNCEBACK SAFETY SERVICES LTD,A0063002,25/01/2024,OPS0338994,600,N,,N,N
Pendle Borough Council,Operational Services,Premises Related Expense,Grounds : R & M : Day to Day : Routine,2101,BOUNCEBACK SAFETY SERVICES LTD,A0063002,25/01/2024,OPS0338994,300,N,,N,N
Pendle Borough Council,Operational Services,Premises Related Expense,Bldgs : R & M : Day To Day,2001,NORTH WEST TRADING COMPANY,A0063527,25/01/2024,OPS0338985,345,N,,N,N
Pendle Borough Council,Human Resources,Indirect Employee Expenses,Emp : Medical Expenses,1236,COLNE OSTEOPATHY,A0065115,25/01/2024,PER0338952,80,N,,N,N
Pendle Borough Council,Human Resources,Indirect Employee Expenses,Emp : Medical Expenses,1236,COLNE OSTEOPATHY,A0065115,25/01/2024,PER0338953,180,N,,N,N
Pendle Borough Council,Human Resources,Indirect Employee Expenses,Emp : Medical Expenses,1236,COLNE OSTEOPATHY,A0065115,25/01/2024,PER0338954,180,N,,N,N
Pendle Borough Council,Human Resources,Transport Related Expense,Car Allows : Offs : Lease Exps,3806,ARNOLD CLARK VEHICLE MANAGEMENT,A0065524,18/01/2024,PER0338804,120.83,N,,N,N
Pendle Borough Council,Human Resources,Transport Related Expense,Car Allows : Offs : Lease Exps,3806,ARNOLD CLARK VEHICLE MANAGEMENT,A0065524,18/01/2024,PER0338804,147.22,N,,N,N
Pendle Borough Council,Housing & Environmental Health,Capital Costs,Ren Grant : 1996 Act,ch22,PENDLE BUILDERS LTD,A0066476,11/01/2024,HEH0338518,5005.2,N,,N,N
Pendle Borough Council,Human Resources,Transport Related Expense,Tprt : Annual Hire Charge,3601,LEX AUTOLEASE LIMITED,A0066530,25/01/2024,PER0338955,343.04,N,,N,N
Pendle Borough Council,Human Resources,Indirect Employee Expenses,Emp : Medical Expenses,1236,PEOPLE ASSET MANAGEMENT LIMITED,A0067613,11/01/2024,PER0338672,97,N,,N,N
Pendle Borough Council,Human Resources,Indirect Employee Expenses,Emp : Medical Expenses,1236,PEOPLE ASSET MANAGEMENT LIMITED,A0067613,11/01/2024,PER0338674,110,N,,N,N
Pendle Borough Council,Human Resources,Indirect Employee Expenses,Emp : Medical Expenses,1236,PEOPLE ASSET MANAGEMENT LIMITED,A0067613,04/01/2024,PER0338561,142.5,N,,N,N
Pendle Borough Council,Human Resources,Indirect Employee Expenses,Emp : Medical Expenses,1236,PEOPLE ASSET MANAGEMENT LIMITED,A0067613,11/01/2024,PER0338674,147,N,,N,N
Pendle Borough Council,Human Resources,Indirect Employee Expenses,Emp : Medical Expenses,1236,PEOPLE ASSET MANAGEMENT LIMITED,A0067613,18/01/2024,PER0338806,338.85,N,,N,N
Pendle Borough Council,Operational Services,Transport Related Expense,Tprt : Repairs : General,3105,PROBRUSH T/A NORTHERN MUNICIPAL SPARES LTD,A0068263,18/01/2024,OPS0338846,171.78,N,,N,N
Pendle Borough Council,Operational Services,Transport Related Expense,Tprt : Repairs : General,3105,PROBRUSH T/A NORTHERN MUNICIPAL SPARES LTD,A0068263,18/01/2024,OPS0338846,120.62,N,,N,N
Pendle Borough Council,Operational Services,Transport Related Expense,Tprt : Repairs : General,3105,PROBRUSH T/A NORTHERN MUNICIPAL SPARES LTD,A0068263,18/01/2024,OPS0338846,120.62,N,,N,N
Pendle Borough Council,Operational Services,Transport Related Expense,Tprt : Repairs : General,3105,PROBRUSH T/A NORTHERN MUNICIPAL SPARES LTD,A0068263,18/01/2024,OPS0338846,120.62,N,,N,N
Pendle Borough Council,Operational Services,Transport Related Expense,Tprt : Repairs : General,3105,PROBRUSH T/A NORTHERN MUNICIPAL SPARES LTD,A0068263,18/01/2024,OPS0338846,120.6,N,,N,N
Pendle Borough Council,Operational Services,Transport Related Expense,Tprt : Repairs : General,3105,PROBRUSH T/A NORTHERN MUNICIPAL SPARES LTD,A0068263,11/01/2024,OPS0338625,360.36,N,,N,N
Pendle Borough Council,Operational Services,Transport Related Expense,Tprt : Repairs : General,3105,PROBRUSH T/A NORTHERN MUNICIPAL SPARES LTD,A0068263,11/01/2024,OPS0338625,360.36,N,,N,N
Pendle Borough Council,Operational Services,Transport Related Expense,Tprt : Repairs : General,3105,PROBRUSH T/A NORTHERN MUNICIPAL SPARES LTD,A0068263,11/01/2024,OPS0338625,360.36,N,,N,N
Pendle Borough Council,Operational Services,Transport Related Expense,Tprt : Repairs : General,3105,PROBRUSH T/A NORTHERN MUNICIPAL SPARES LTD,A0068263,11/01/2024,OPS0338625,360.37,N,,N,N
Pendle Borough Council,Operational Services,Transport Related Expense,Tprt : Repairs : General,3105,PROBRUSH T/A NORTHERN MUNICIPAL SPARES LTD,A0068263,11/01/2024,OPS0338625,171.78,N,,N,N
Pendle Borough Council,Economic Growth,Supplies and Services,Processing Fees,4424,CHIPSIDE LTD,A0068587,25/01/2024,ECO0339012,12.04,N,,N,N
Pendle Borough Council,Economic Growth,Supplies and Services,Processing Fees,4424,CHIPSIDE LTD,A0068587,11/01/2024,ECO0338702,152.34,N,,N,N
Pendle Borough Council,Economic Growth,Supplies and Services,Processing Fees,4424,CHIPSIDE LTD,A0068587,11/01/2024,ECO0338701,154.95,N,,N,N
Pendle Borough Council,Economic Growth,Supplies and Services,Processing Fees,4424,CHIPSIDE LTD,A0068587,25/01/2024,ECO0339019,174.39,N,,N,N
Pendle Borough Council,Economic Growth,Supplies and Services,Processing Fees,4424,CHIPSIDE LTD,A0068587,11/01/2024,ECO0338700,196.77,N,,N,N
Pendle Borough Council,Economic Growth,Capital Costs,Capital : Payments,CD14,PEARL 2,A0070545,11/01/2024,ECO0338703,7000,N,,N,N
Pendle Borough Council,Operational Services,Transport Related Expense,Tprt : Repairs : General,3105,GUY MACHINERY LIMITED,A0070711,25/01/2024,OPS0339002,25.94,N,,N,N
Pendle Borough Council,Operational Services,Transport Related Expense,Tprt : Repairs : General,3105,GUY MACHINERY LIMITED,A0070711,25/01/2024,OPS0339002,259.41,N,,N,N
Pendle Borough Council,Operational Services,Supplies and Services,Sub-Contractors,4007,RENTOKIL INITIAL UK LIMITED,A0072816,18/01/2024,OPS4006787,-204.12,N,,N,N
Pendle Borough Council,Operational Services,Supplies and Services,Sub-Contractors,4007,RENTOKIL INITIAL UK LIMITED,A0072816,18/01/2024,OPS0338848,247.25,N,,N,N
Pendle Borough Council,Operational Services,Supplies and Services,Sub-Contractors,4007,RENTOKIL INITIAL UK LIMITED,A0072816,04/01/2024,OPS0338566,1318.62,N,,N,N
Pendle Borough Council,Operational Services,Supplies and Services,Sub-Contractors,4007,RENTOKIL INITIAL UK LIMITED,A0072816,25/01/2024,OPS0338903,2307.98,N,,N,N
Pendle Borough Council,Operational Services,Supplies and Services,Sub-Contractors,4007,RENTOKIL INITIAL UK LIMITED,A0072816,18/01/2024,OPS4006786,-4.74,N,,N,N
Pendle Borough Council,Operational Services,Supplies and Services,Sub-Contractors,4007,RENTOKIL INITIAL UK LIMITED,A0072816,25/01/2024,OPS0338903,6.34,N,,N,N
Pendle Borough Council,Operational Services,Supplies and Services,Sub-Contractors,4007,RENTOKIL INITIAL UK LIMITED,A0072816,18/01/2024,OPS0338848,36.84,N,,N,N
Pendle Borough Council,Operational Services,Supplies and Services,Sub-Contractors,4007,RENTOKIL INITIAL UK LIMITED,A0072816,25/01/2024,OPS0338903,92.14,N,,N,N
Pendle Borough Council,Operational Services,Premises Related Expense,Grounds : R & M : Day to Day : Routine,2101,FENLAND LEISURE PRODUCTS LIMITED,A0072950,18/01/2024,OPS0338819,242,N,,N,N
Pendle Borough Council,Finance,Supplies and Services,Subscriptions & Donations,4706,VODAFONE LIMITED,A0076999,18/01/2024,FIN0338911,689.94,N,,N,N
Pendle Borough Council,Legal & Democratic Services,Supplies and Services,Printing & Stationery,4301,THOMSON REUTERS PROFESSIONAL UK LIMITED,A0077400,18/01/2024,LAD0338794,1153.95,N,,N,N
Pendle Borough Council,Finance,,Precept Parish & T Council,0303,FOULRIDGE PARISH COUNCIL,A0077715,04/01/2024,FIN0338495,8854,N,,N,N
Pendle Borough Council,Economic Growth,Support Services,Staffing Recharge,7102,IN-SITU,A0079936,11/01/2024,ECO0338676,9228.31,N,,N,N
Pendle Borough Council,Economic Growth,Support Services,Staffing Recharge,7102,IN-SITU,A0079936,11/01/2024,ECO0338692,9331.68,N,,N,N
Pendle Borough Council,Economic Growth,Capital Costs,Public Realm,CD20,IN-SITU,A0079936,11/01/2024,ECO0338692,10646,N,,N,N
Pendle Borough Council,Finance,,Precept Parish & T Council,0303,GOLDSHAW BOOTH PARISH COUNCIL,A0080533,04/01/2024,FIN0338496,1961.9,N,,N,N
Pendle Borough Council,Finance,,Precept Parish & T Council,0303,KELBROOK & SOUGH PARISH COUNCIL,A0081332,04/01/2024,FIN0338498,3812.5,N,,N,N
Pendle Borough Council,Operational Services,Supplies and Services,Other Expenses,4705,ROUTEWARE LIMITED,A0082416,25/01/2024,OPS0338979,2104.2,N,,N,N
Pendle Borough Council,Operational Services,Capital Costs,Capital : Payments,cd14,ROUTEWARE LIMITED,A0082416,25/01/2024,OPS0338979,7692,N,,N,N
Pendle Borough Council,Economic Growth,Supplies and Services,Other Expenses,4705,KELBROOK & SOUGH VILLAGE HALL,A0083148,11/01/2024,ECO0338699,440,N,,N,N
Pendle Borough Council,Finance,Support Services,District Audit Fees,7202,GRANT THORNTON UK LLP,A0084044,04/01/2024,FIN0338579,7188,N,,N,N
Pendle Borough Council,Finance,,Precept Parish & T Council,0303,BLACKO PARISH COUNCIL,A0084321,04/01/2024,FIN0338491,2575.48,N,,N,N
Pendle Borough Council,Housing & Environmental Health,Supplies and Services,Other Expenses,4705,BLACKO PARISH COUNCIL,A0084321,11/01/2024,HEH0338617,1000,N,,N,N
Pendle Borough Council,Finance,Supplies and Services,Allpay,4422,ALLPAY LIMITED,A0084372,04/01/2024,FIN0338588,11,N,,N,N
Pendle Borough Council,Finance,Supplies and Services,Allpay,4422,ALLPAY LIMITED,A0084372,04/01/2024,FIN0338589,11,N,,N,N
Pendle Borough Council,Finance,Supplies and Services,Allpay,4422,ALLPAY LIMITED,A0084372,04/01/2024,FIN0338585,18.65,N,,N,N
Pendle Borough Council,Finance,Supplies and Services,Allpay,4422,ALLPAY LIMITED,A0084372,04/01/2024,FIN0338586,22.74,N,,N,N
Pendle Borough Council,Finance,Supplies and Services,Allpay,4422,ALLPAY LIMITED,A0084372,04/01/2024,FIN0338590,53.52,N,,N,N
Pendle Borough Council,Finance,Supplies and Services,Allpay,4422,ALLPAY LIMITED,A0084372,04/01/2024,FIN0338587,1917.56,N,,N,N
Pendle Borough Council,Housing & Environmental Health,,Housing Impts/Cap Repairs,0104,ELITE PLUMBING,A0084584,11/01/2024,HEH0338516,2062.5,N,,N,N
Pendle Borough Council,Housing & Environmental Health,,Housing Impts/Cap Repairs,0104,ELITE PLUMBING,A0084584,18/01/2024,HEH0338842,2862.5,N,,N,N
Pendle Borough Council,Housing & Environmental Health,,Housing Impts/Cap Repairs,0104,ELITE PLUMBING,A0084584,11/01/2024,HEH0338510,4300,N,,N,N
Pendle Borough Council,Housing & Environmental Health,Premises Related Expense,Bldgs : R & M : Abnormal,2002,ELITE PLUMBING,A0084584,18/01/2024,HEH0338666,60,N,,N,N
Pendle Borough Council,Housing & Environmental Health,Capital Costs,Ren Grant : 1996 Act,CH22,ELITE PLUMBING,A0084584,18/01/2024,HEH0338800,2305.8,N,,N,N
Pendle Borough Council,Housing & Environmental Health,Capital Costs,Ren Grant : 1996 Act,CH22,ELITE PLUMBING,A0084584,11/01/2024,HEH0338517,35820,N,,N,N
Pendle Borough Council,Property Services,Capital Costs,Capital : Payments,CD14,LABOSPORT LIMITED,A0085107,18/01/2024,EST0338891,2150,N,,N,N
Pendle Borough Council,Policy & Commissioning,Supplies and Services,Other Expenses,4705,REDACT - PERSONAL DATA,A0085472,25/01/2024,POL0338976,700.65,N,,N,N
Pendle Borough Council,Economic Growth,Premises Related Expense,Grounds : R & M : Day to Day : Routine,2101,KEVIN WILKINSON LANDSCAPES LTD,A0085660,11/01/2024,ECO0338714,108,N,,N,N
Pendle Borough Council,Economic Growth,Premises Related Expense,Grounds : R & M : Day to Day : Routine,2101,MARCHBRIDGE BUILDERS LIMITED,A0087284,11/01/2024,ECO0338696,1277.39,N,,N,N
Pendle Borough Council,Economic Growth,Premises Related Expense,Grounds : R & M : Day to Day : Routine,2101,MARCHBRIDGE BUILDERS LIMITED,A0087284,25/01/2024,ECO0338886,352,N,,N,N
Pendle Borough Council,Economic Growth,Premises Related Expense,Grounds : R & M : Day to Day : Routine,2101,MARCHBRIDGE BUILDERS LIMITED,A0087284,25/01/2024,ECO0339013,675,N,,N,N
Pendle Borough Council,Economic Growth,Premises Related Expense,Grounds : R & M : Day to Day : Routine,2101,MARCHBRIDGE BUILDERS LIMITED,A0087284,25/01/2024,ECO0339015,2650,N,,N,N
Pendle Borough Council,Property Services,Premises Related Expense,Bldgs : R & M : Day To Day,2001,CATCHPOINT (UK) LIMITED,A0089500,25/01/2024,EST0339028,69.5,N,,N,N
Pendle Borough Council,Property Services,Premises Related Expense,Bldgs : R & M : Day To Day,2001,CATCHPOINT (UK) LIMITED,A0089500,25/01/2024,EST0339029,160,N,,N,N
Pendle Borough Council,Revenues Services,Supplies and Services,Search Fees,4404,INFORM CPI LIMITED,A0089895,25/01/2024,TRE0338906,513,N,,N,N
Pendle Borough Council,Housing & Environmental Health,Supplies and Services,Other Expenses,4705,ULTIMATE PROPERTY SOLUTIONS,A0090032,11/01/2024,HEH0338675,600,N,,N,N
Pendle Borough Council,Policy & Commissioning,Supplies and Services,Publicity & advertisement,4704,WE LOVE CREATIVE LIMITED,A0090098,11/01/2024,POL0338555,400,N,,N,N
Pendle Borough Council,Policy & Commissioning,Supplies and Services,Publicity & advertisement,4704,WE LOVE CREATIVE LIMITED,A0090098,11/01/2024,POL0338554,400,N,,N,N
Pendle Borough Council,Housing & Environmental Health,,Housing Impts/Cap Repairs,0104,AZTEC GAS,A0090162,11/01/2024,HEH0338515,1743.85,N,,N,N
Pendle Borough Council,Operational Services,Premises Related Expense,Grounds : R & M : Day to Day : Routine,2101,MARTIN LEE,A0090177,25/01/2024,OPS0338996,162.5,N,,N,N
Pendle Borough Council,Operational Services,Premises Related Expense,Grounds : R & M : Day to Day : Routine,2101,MARTIN LEE,A0090177,25/01/2024,OPS0338996,214.5,N,,N,N
Pendle Borough Council,Operational Services,Premises Related Expense,Grounds : R & M : Day to Day : Routine,2101,MARTIN LEE,A0090177,25/01/2024,OPS0338996,500,N,,N,N
Pendle Borough Council,Operational Services,Premises Related Expense,Niche Walls & Ashes Chambers,2107,MARTIN LEE,A0090177,25/01/2024,OPS0338996,540,N,,N,N
Pendle Borough Council,Operational Services,Premises Related Expense,Niche Walls & Ashes Chambers,2107,MARTIN LEE,A0090177,25/01/2024,OPS0338996,540,N,,N,N
Pendle Borough Council,Operational Services,Transport Related Expense,Tprt : Repairs : General,3105,VISION TECHNIQUES UK LIMITED,A0090179,18/01/2024,OPS0338872,180,N,,N,N
Pendle Borough Council,Operational Services,Transport Related Expense,Tprt : Repairs : General,3105,VISION TECHNIQUES UK LIMITED,A0090179,18/01/2024,OPS0338872,180,N,,N,N
Pendle Borough Council,Operational Services,Transport Related Expense,Tprt : Repairs : General,3105,VISION TECHNIQUES UK LIMITED,A0090179,18/01/2024,OPS0338872,180,N,,N,N
Pendle Borough Council,Operational Services,Transport Related Expense,Tprt : Repairs : General,3105,VISION TECHNIQUES UK LIMITED,A0090179,18/01/2024,OPS0338872,180,N,,N,N
Pendle Borough Council,Operational Services,Transport Related Expense,Tprt : Repairs : General,3105,VISION TECHNIQUES UK LIMITED,A0090179,18/01/2024,OPS0338872,180,N,,N,N
Pendle Borough Council,Operational Services,Transport Related Expense,Tprt : Repairs : General,3105,VISION TECHNIQUES UK LIMITED,A0090179,18/01/2024,OPS0338872,180,N,,N,N
Pendle Borough Council,Operational Services,Transport Related Expense,Tprt : Repairs : General,3105,VISION TECHNIQUES UK LIMITED,A0090179,18/01/2024,OPS0338872,180,N,,N,N
Pendle Borough Council,Operational Services,Transport Related Expense,Tprt : Repairs : General,3105,VISION TECHNIQUES UK LIMITED,A0090179,18/01/2024,OPS0338872,180,N,,N,N
Pendle Borough Council,Operational Services,Transport Related Expense,Tprt : Repairs : General,3105,VISION TECHNIQUES UK LIMITED,A0090179,18/01/2024,OPS0338872,180,N,,N,N
Pendle Borough Council,Operational Services,Transport Related Expense,Tprt : Repairs : General,3105,VISION TECHNIQUES UK LIMITED,A0090179,18/01/2024,OPS0338872,180,N,,N,N
Pendle Borough Council,Operational Services,Transport Related Expense,Tprt : Repairs : General,3105,VISION TECHNIQUES UK LIMITED,A0090179,18/01/2024,OPS0338872,180,N,,N,N
Pendle Borough Council,Operational Services,Transport Related Expense,Tprt : Repairs : General,3105,VISION TECHNIQUES UK LIMITED,A0090179,18/01/2024,OPS0338872,180,N,,N,N
Pendle Borough Council,Operational Services,Transport Related Expense,Tprt : Repairs : General,3105,VISION TECHNIQUES UK LIMITED,A0090179,18/01/2024,OPS0338872,180,N,,N,N
Pendle Borough Council,Operational Services,Transport Related Expense,Tprt : Repairs : General,3105,VISION TECHNIQUES UK LIMITED,A0090179,18/01/2024,OPS0338872,180,N,,N,N
Pendle Borough Council,Operational Services,Transport Related Expense,Tprt : Repairs : General,3105,VISION TECHNIQUES UK LIMITED,A0090179,18/01/2024,OPS0338872,180,N,,N,N
Pendle Borough Council,Operational Services,Transport Related Expense,Tprt : Repairs : General,3105,VISION TECHNIQUES UK LIMITED,A0090179,18/01/2024,OPS0338872,180,N,,N,N
Pendle Borough Council,Operational Services,Transport Related Expense,Tprt : Repairs : General,3105,VISION TECHNIQUES UK LIMITED,A0090179,18/01/2024,OPS0338872,180,N,,N,N
Pendle Borough Council,Operational Services,Transport Related Expense,Tprt : Repairs : General,3105,VISION TECHNIQUES UK LIMITED,A0090179,18/01/2024,OPS0338872,180,N,,N,N
Pendle Borough Council,Operational Services,Transport Related Expense,Tprt : Repairs : General,3105,VISION TECHNIQUES UK LIMITED,A0090179,18/01/2024,OPS0338872,180,N,,N,N
Pendle Borough Council,Finance,Supplies and Services,Consultants Fees,4401,ACS LTD,A0090312,11/01/2024,FIN0338744,650,N,,N,N
Pendle Borough Council,Finance,Supplies and Services,Consultants Fees,4401,ACS LTD,A0090312,11/01/2024,FIN0338744,650,N,,N,N
Pendle Borough Council,Finance,,Precept Parish & T Council,0303,BARNOLDSWICK TOWN COUNCIL,A0090352,04/01/2024,FIN0338489,73750,N,,N,N
Pendle Borough Council,Economic Growth,Premises Related Expense,Grounds : R & M : Day to Day : Routine,2101,GREEN CLEAN RESTORATION,A0090368,11/01/2024,ECO0338710,810,N,,N,N
Pendle Borough Council,Economic Growth,Premises Related Expense,Grounds : R & M : Day to Day : Routine,2101,GREEN CLEAN RESTORATION,A0090368,11/01/2024,ECO0338710,3300,N,,N,N
Pendle Borough Council,Finance,,Precept Parish & T Council,0303,SALTERFORTH PARISH COUNCIL,A0090441,04/01/2024,FIN0338504,5250,N,,N,N
Pendle Borough Council,Finance,,Precept Parish & T Council,0303,HIGHAM WITH WEST CLOSE BOOTH PC,A0090493,04/01/2024,FIN0338497,4987.5,N,,N,N
Pendle Borough Council,Operational Services,Supplies and Services,Sub-Contractors,4007,R S ASBESTOS LIMITED,A0090548,04/01/2024,OPS0338565,395,N,,N,N
Pendle Borough Council,Operational Services,Premises Related Expense,Bldgs : R & M : Day To Day,2001,TREETOPS DE-VEGETATION SERVICES LIMITED,A0090701,04/01/2024,OPS0338598,150,N,,N,N
Pendle Borough Council,Operational Services,Premises Related Expense,Grounds : R & M : Day to Day : Routine,2101,TREETOPS DE-VEGETATION SERVICES LIMITED,A0090701,04/01/2024,OPS0338598,1250,N,,N,N
Pendle Borough Council,Finance,Capital Costs,Capital: Construction: Conversion/Refu,CD57,B & E BOYS LIMITED,A0090790,18/01/2024,FIN0338912,66881.23,N,,N,N
Pendle Borough Council,Finance,,Precept Parish & T Council,0303,BRIERFIELD TOWN COUNCIL - PRECEPTS ONLY,A0091165,04/01/2024,FIN0338492,46035,N,,N,N
Pendle Borough Council,Operational Services,Supplies and Services,Other Expenses,4705,SOFTCAT,A0091298,11/01/2024,OPS0338624,21.24,N,,N,N
Pendle Borough Council,I.T Services,Capital Costs,Ren Grant : 1996 Act,CH22,SOFTCAT,A0091298,25/01/2024,ITS0338970,1782,N,,N,N
Pendle Borough Council,Legal & Democratic Services,Capital Costs,Capital : Payments,CD14,THE SHERIFFS OFFICE,A0091348,11/01/2024,LAD0338649,800,N,,N,N
Pendle Borough Council,Operational Services,Transport Related Expense,Tprt : Repairs : General,3105,QUARTIX LIMITED,A0091353,11/01/2024,OPS0338669,180,N,,N,N
Pendle Borough Council,Operational Services,Transport Related Expense,Tprt : Repairs : General,3105,QUARTIX LIMITED,A0091353,11/01/2024,OPS0338669,180,N,,N,N
Pendle Borough Council,Operational Services,Transport Related Expense,Tprt : Repairs : General,3105,QUARTIX LIMITED,A0091353,11/01/2024,OPS0338669,180,N,,N,N
Pendle Borough Council,Operational Services,Transport Related Expense,Tprt : Repairs : General,3105,QUARTIX LIMITED,A0091353,11/01/2024,OPS0338669,180,N,,N,N
Pendle Borough Council,Operational Services,Transport Related Expense,Tprt : Repairs : General,3105,QUARTIX LIMITED,A0091353,11/01/2024,OPS0338669,180,N,,N,N
Pendle Borough Council,Operational Services,Transport Related Expense,Tprt : Repairs : General,3105,QUARTIX LIMITED,A0091353,11/01/2024,OPS0338669,180,N,,N,N
Pendle Borough Council,Operational Services,Transport Related Expense,Tprt : Repairs : General,3105,QUARTIX LIMITED,A0091353,11/01/2024,OPS0338669,180,N,,N,N
Pendle Borough Council,Operational Services,Transport Related Expense,Tprt : Repairs : General,3105,QUARTIX LIMITED,A0091353,11/01/2024,OPS0338669,180,N,,N,N
Pendle Borough Council,Operational Services,Transport Related Expense,Tprt : Repairs : General,3105,QUARTIX LIMITED,A0091353,11/01/2024,OPS0338669,180,N,,N,N
Pendle Borough Council,Operational Services,Transport Related Expense,Tprt : Repairs : General,3105,QUARTIX LIMITED,A0091353,11/01/2024,OPS0338669,180,N,,N,N
Pendle Borough Council,Operational Services,Transport Related Expense,Tprt : Repairs : General,3105,QUARTIX LIMITED,A0091353,11/01/2024,OPS0338669,180,N,,N,N
Pendle Borough Council,Operational Services,Transport Related Expense,Tprt : Repairs : General,3105,QUARTIX LIMITED,A0091353,11/01/2024,OPS0338669,180,N,,N,N
Pendle Borough Council,Operational Services,Transport Related Expense,Tprt : Repairs : General,3105,QUARTIX LIMITED,A0091353,11/01/2024,OPS0338669,180,N,,N,N
Pendle Borough Council,Operational Services,Transport Related Expense,Tprt : Repairs : General,3105,QUARTIX LIMITED,A0091353,11/01/2024,OPS0338669,180,N,,N,N
Pendle Borough Council,Operational Services,Transport Related Expense,Tprt : Repairs : General,3105,QUARTIX LIMITED,A0091353,11/01/2024,OPS0338669,180,N,,N,N
Pendle Borough Council,Operational Services,Transport Related Expense,Tprt : Repairs : General,3105,QUARTIX LIMITED,A0091353,11/01/2024,OPS0338669,180,N,,N,N
Pendle Borough Council,Operational Services,Transport Related Expense,Tprt : Repairs : General,3105,QUARTIX LIMITED,A0091353,11/01/2024,OPS0338669,180,N,,N,N
Pendle Borough Council,Operational Services,Transport Related Expense,Tprt : Repairs : General,3105,QUARTIX LIMITED,A0091353,11/01/2024,OPS0338669,180,N,,N,N
Pendle Borough Council,Operational Services,Transport Related Expense,Tprt : Repairs : General,3105,QUARTIX LIMITED,A0091353,11/01/2024,OPS0338669,180,N,,N,N
Pendle Borough Council,Operational Services,Supplies and Services,Miscellaneous : Other,4707,PERMISERV LIMITED,A0091396,11/01/2024,OPS0338627,15.82,N,,N,N
Pendle Borough Council,Legal & Democratic Services,Supplies and Services,Other Expenses,4705,SPECIALISED CANVAS SERVICES LTD,A0091459,11/01/2024,LAD0338670,160.56,N,,N,N
Pendle Borough Council,I.T Services,Supplies and Services,EFM : Office and computer equipment,4002,STORM TECHNOLOGIES LIMITED,A0091493,25/01/2024,ITS0338969,37.76,N,,N,N
Pendle Borough Council,Operational Services,Supplies and Services,EFM : Office and computer equipment,4002,STORM TECHNOLOGIES LIMITED,A0091493,25/01/2024,OPS0338980,139,N,,N,N
Pendle Borough Council,I.T Services,Supplies and Services,EFM : Office and computer equipment,4002,STORM TECHNOLOGIES LIMITED,A0091493,25/01/2024,ITS0338967,149.23,N,,N,N
Pendle Borough Council,Policy & Commissioning,Supplies and Services,Other Expenses,4705,STORM TECHNOLOGIES LIMITED,A0091493,18/01/2024,POL0338797,1253.8,N,,N,N
Pendle Borough Council,Operational Services,Agency Staff,Emp : Basic Wages,1001,NW RECRUITMENT SERVICES LIMITED,A0091588,18/01/2024,OPS0338637,187.91,N,,N,N
Pendle Borough Council,Operational Services,Agency Staff,Emp : Basic Wages,1001,NW RECRUITMENT SERVICES LIMITED,A0091588,18/01/2024,OPS0338821,2125.5,N,,N,N
Pendle Borough Council,Operational Services,Agency Staff,Emp : Basic Wages,1001,NW RECRUITMENT SERVICES LIMITED,A0091588,11/01/2024,OPS0338638,2569.47,N,,N,N
Pendle Borough Council,Operational Services,Agency Staff,Emp : Basic Wages,1001,NW RECRUITMENT SERVICES LIMITED,A0091588,04/01/2024,OPS0338600,3006.56,N,,N,N
Pendle Borough Council,Operational Services,Agency Staff,Emp : Basic Wages,1001,NW RECRUITMENT SERVICES LIMITED,A0091588,25/01/2024,OPS0339005,3012.44,N,,N,N
Pendle Borough Council,Legal & Democratic Services,Agency Staff,Emp : Agency Wages,1004,NW RECRUITMENT SERVICES LIMITED,A0091588,18/01/2024,LAD0338778,285.95,N,,N,N
Pendle Borough Council,Legal & Democratic Services,Agency Staff,Emp : Agency Wages,1004,NW RECRUITMENT SERVICES LIMITED,A0091588,18/01/2024,LAD0338779,285.95,N,,N,N
Pendle Borough Council,Legal & Democratic Services,Agency Staff,Emp : Agency Wages,1004,NW RECRUITMENT SERVICES LIMITED,A0091588,11/01/2024,LAD0338560,347.23,N,,N,N
Pendle Borough Council,Legal & Democratic Services,Agency Staff,Emp : Agency Wages,1004,NW RECRUITMENT SERVICES LIMITED,A0091588,18/01/2024,LAD0338839,347.23,N,,N,N
Pendle Borough Council,Legal & Democratic Services,Agency Staff,Emp : Agency Wages,1004,NW RECRUITMENT SERVICES LIMITED,A0091588,25/01/2024,LAD0339008,453.44,N,,N,N
Pendle Borough Council,Operational Services,Agency Staff,Emp : Agency Wages,1004,NW RECRUITMENT SERVICES LIMITED,A0091588,18/01/2024,OPS0338823,47.76,N,,N,N
Pendle Borough Council,Operational Services,Agency Staff,Emp : Agency Wages,1004,NW RECRUITMENT SERVICES LIMITED,A0091588,04/01/2024,OPS0338601,107.46,N,,N,N
Pendle Borough Council,Operational Services,Agency Staff,Emp : Agency Wages,1004,NW RECRUITMENT SERVICES LIMITED,A0091588,25/01/2024,OPS0339007,183.08,N,,N,N
Pendle Borough Council,Operational Services,Agency Staff,Emp : Agency Wages,1004,NW RECRUITMENT SERVICES LIMITED,A0091588,04/01/2024,OPS0338575,3828.87,N,,N,N
Pendle Borough Council,Operational Services,Agency Staff,Emp : Agency Wages,1004,NW RECRUITMENT SERVICES LIMITED,A0091588,18/01/2024,OPS0338840,4376.54,N,,N,N
Pendle Borough Council,Operational Services,Agency Staff,Emp : Agency Wages,1004,NW RECRUITMENT SERVICES LIMITED,A0091588,18/01/2024,OPS0338835,4479.37,N,,N,N
Pendle Borough Council,Operational Services,Agency Staff,Emp : Agency Wages,1004,NW RECRUITMENT SERVICES LIMITED,A0091588,18/01/2024,OPS0338837,5201.69,N,,N,N
Pendle Borough Council,Operational Services,Agency Staff,Emp : Agency Wages,1004,NW RECRUITMENT SERVICES LIMITED,A0091588,04/01/2024,OPS0338575,1071.6,N,,N,N
Pendle Borough Council,Operational Services,Agency Staff,Emp : Agency Wages,1004,NW RECRUITMENT SERVICES LIMITED,A0091588,18/01/2024,OPS0338835,1398.99,N,,N,N
Pendle Borough Council,Operational Services,Agency Staff,Emp : Agency Wages,1004,NW RECRUITMENT SERVICES LIMITED,A0091588,18/01/2024,OPS0338840,2437.71,N,,N,N
Pendle Borough Council,Operational Services,Agency Staff,Emp : Agency Wages,1004,NW RECRUITMENT SERVICES LIMITED,A0091588,18/01/2024,OPS0338837,3039.91,N,,N,N
Pendle Borough Council,Operational Services,Agency Staff,Emp : Agency Wages,1004,NW RECRUITMENT SERVICES LIMITED,A0091588,04/01/2024,OPS0338575,1727.57,N,,N,N
Pendle Borough Council,Operational Services,Agency Staff,Emp : Agency Wages,1004,NW RECRUITMENT SERVICES LIMITED,A0091588,18/01/2024,OPS0338840,1800.43,N,,N,N
Pendle Borough Council,Operational Services,Agency Staff,Emp : Agency Wages,1004,NW RECRUITMENT SERVICES LIMITED,A0091588,18/01/2024,OPS0338837,1808.9,N,,N,N
Pendle Borough Council,Operational Services,Agency Staff,Emp : Agency Wages,1004,NW RECRUITMENT SERVICES LIMITED,A0091588,18/01/2024,OPS0338835,2021.43,N,,N,N
Pendle Borough Council,Finance,,Paid in the Year,PD03,COLNE BID LIMITED,A0091663,11/01/2024,FIN0338743,55964.11,N,,N,N
Pendle Borough Council,Economic Growth,Premises Related Expense,Bldgs : R & M : Day To Day,2001,A&G LANDSCAPES & GROUNDWORKS LIMITED,A0091675,11/01/2024,ECO0338708,100,N,,N,N
Pendle Borough Council,Operational Services,Premises Related Expense,Grounds : R & M : Day to Day : Routine,2101,A&G LANDSCAPES & GROUNDWORKS LIMITED,A0091675,25/01/2024,OPS0338993,162,N,,N,N
Pendle Borough Council,Operational Services,Premises Related Expense,Grounds : R & M : Day to Day : Routine,2101,A&G LANDSCAPES & GROUNDWORKS LIMITED,A0091675,25/01/2024,OPS0338993,188,N,,N,N
Pendle Borough Council,Operational Services,Premises Related Expense,Grounds : R & M : Day to Day : Routine,2101,A&G LANDSCAPES & GROUNDWORKS LIMITED,A0091675,25/01/2024,OPS0338993,478,N,,N,N
Pendle Borough Council,Operational Services,Premises Related Expense,Grounds : R & M : Day to Day : Routine,2101,A&G LANDSCAPES & GROUNDWORKS LIMITED,A0091675,25/01/2024,OPS0338993,562,N,,N,N
Pendle Borough Council,Economic Growth,Premises Related Expense,Grounds : R & M : Day to Day : Routine,2101,A&G LANDSCAPES & GROUNDWORKS LIMITED,A0091675,25/01/2024,ECO0338884,19.85,N,,N,N
Pendle Borough Council,Economic Growth,Premises Related Expense,Grounds : R & M : Day to Day : Routine,2101,A&G LANDSCAPES & GROUNDWORKS LIMITED,A0091675,25/01/2024,ECO0338884,75,N,,N,N
Pendle Borough Council,Economic Growth,Supplies and Services,Other Expenses,4705,A&G LANDSCAPES & GROUNDWORKS LIMITED,A0091675,25/01/2024,ECO0338885,255,N,,N,N
Pendle Borough Council,Economic Growth,Supplies and Services,Other Expenses,4705,A&G LANDSCAPES & GROUNDWORKS LIMITED,A0091675,25/01/2024,ECO0338885,750,N,,N,N
Pendle Borough Council,Finance,Capital Costs,Capital : Payments,CD14,BRYAN LEE BUILDING CONTRACTORS LIMITED,A0091749,18/01/2024,FIN0338914,13179.34,N,,N,N
Pendle Borough Council,Housing & Environmental Health,Agency Staff,Emp : Agency Wages,1004,THE OYSTER PARTNERSHIP LIMITED,A0091781,11/01/2024,HEH0338618,632.79,N,,N,N
Pendle Borough Council,Housing & Environmental Health,Agency Staff,Emp : Agency Wages,1004,THE OYSTER PARTNERSHIP LIMITED,A0091781,18/01/2024,HEH0338777,649.5,N,,N,N
Pendle Borough Council,Housing & Environmental Health,Agency Staff,Emp : Agency Wages,1004,THE OYSTER PARTNERSHIP LIMITED,A0091781,11/01/2024,HEH0338511,1492.61,N,,N,N
Pendle Borough Council,Housing & Environmental Health,Agency Staff,Emp : Agency Wages,1004,THE OYSTER PARTNERSHIP LIMITED,A0091781,18/01/2024,HEH0338657,1518.61,N,,N,N
Pendle Borough Council,Housing & Environmental Health,Agency Staff,Emp : Agency Wages,1004,THE OYSTER PARTNERSHIP LIMITED,A0091781,18/01/2024,HEH0338656,1520.09,N,,N,N
Pendle Borough Council,Housing & Environmental Health,Agency Staff,Emp : Agency Wages,1004,THE OYSTER PARTNERSHIP LIMITED,A0091781,25/01/2024,HEH0339060,1521.91,N,,N,N
Pendle Borough Council,Housing & Environmental Health,Agency Staff,Emp : Agency Wages,1004,THE OYSTER PARTNERSHIP LIMITED,A0091781,11/01/2024,HEH0338512,1547.71,N,,N,N
Pendle Borough Council,Housing & Environmental Health,Agency Staff,Emp : Agency Wages,1004,THE OYSTER PARTNERSHIP LIMITED,A0091781,18/01/2024,HEH0338907,1569.1,N,,N,N
Pendle Borough Council,"Planning, Building Control & Regulatory Services",Agency Staff,Emp : Agency Wages,1004,THE OYSTER PARTNERSHIP LIMITED,A0091781,18/01/2024,PBC0338880,892.5,N,,N,N
Pendle Borough Council,"Planning, Building Control & Regulatory Services",Agency Staff,Emp : Agency Wages,1004,THE OYSTER PARTNERSHIP LIMITED,A0091781,18/01/2024,PBC0338559,1365,N,,N,N
Pendle Borough Council,"Planning, Building Control & Regulatory Services",Agency Staff,Emp : Agency Wages,1004,THE OYSTER PARTNERSHIP LIMITED,A0091781,18/01/2024,PBC0338391,1459.5,N,,N,N
Pendle Borough Council,"Planning, Building Control & Regulatory Services",Agency Staff,Emp : Agency Wages,1004,THE OYSTER PARTNERSHIP LIMITED,A0091781,18/01/2024,PBC0338881,1596,N,,N,N
Pendle Borough Council,Housing & Environmental Health,Agency Staff,Emp : Agency Wages,1004,G2 RECRUITMENT SOLUTIONS,A0091827,25/01/2024,HEH0339048,6855.25,N,,N,N
Pendle Borough Council,Housing & Environmental Health,Agency Staff,Emp : Agency Wages,1004,G2 RECRUITMENT SOLUTIONS,A0091827,25/01/2024,HEH0339049,8033.97,N,,N,N
Pendle Borough Council,Finance,Supplies and Services,Allpay,4422,CHESHIRE EAST BOROUGH COUNCIL,A0091857,25/01/2024,FIN0339063,2000,N,,N,N
Pendle Borough Council,Housing & Environmental Health,Capital Costs,Ren Grant : 1996 Act,CH22,DYNAMIC PLUMBING AND HEATING,A0091941,11/01/2024,HEH0338514,2200,N,,N,N
Pendle Borough Council,Operational Services,,Stock : Purchases,PJ01,SMI GROUP UK,A0091999,04/01/2024,OPS0338568,165.45,N,,N,N
Pendle Borough Council,Operational Services,,Stock : Purchases,pj01,SMI GROUP UK,A0091999,18/01/2024,OPS0338847,193.28,N,,N,N
Pendle Borough Council,Operational Services,,Stock : Purchases,PJ01,SMI GROUP UK,A0091999,25/01/2024,OPS0338981,294.84,N,,N,N
Pendle Borough Council,Operational Services,,Stock : Purchases,pj01,SMI GROUP UK,A0091999,04/01/2024,OPS0338577,460.56,N,,N,N
Pendle Borough Council,Housing & Environmental Health,Supplies and Services,Other Expenses,4705,RESIDENTIAL LETTINGS,A0092212,11/01/2024,HEH0338689,1175,N,,N,N
Pendle Borough Council,Economic Growth,Capital Costs,Capital : Payments,CD14,VERTEX VEHICLE MANAGEMENT,A0092376,25/01/2024,ECO0339018,5259,N,,N,N
Pendle Borough Council,Directorate,Supplies and Services,Seminars etc All Costs,4601,THE LIGHTBEAM ACADEMY LTD,A0092431,25/01/2024,DIR0338920,255,N,,N,N
Pendle Borough Council,Policy & Commissioning,Supplies and Services,Children`s holiday activities,4716,THE LIGHTBEAM ACADEMY LTD,A0092431,18/01/2024,POL0338658,252,N,,N,N
Pendle Borough Council,Housing & Environmental Health,Capital Costs,Ren Grant : 1996 Act,CH22,BLUEBELL NORTH WEST LIMITED,A0092759,18/01/2024,HEH0338663,30000,N,,N,N
Pendle Borough Council,Economic Growth,Capital Costs,Capital : Payments,CD14,APTUS UTILITIES LIMITED,A0094260,25/01/2024,ECO0339017,28473.48,N,,N,N
Pendle Borough Council,Revenues Services,Supplies and Services,DSS Collection Fee,4414,MARSTON (HOLDINGS) LIMITED,A0094273,11/01/2024,TRE0338664,35.28,N,,N,N
Pendle Borough Council,Economic Growth,Supplies and Services,LCC Levy (Admins Costs),4419,MARSTON (HOLDINGS) LIMITED,A0094273,11/01/2024,ECO0338715,-310,N,,N,N
Pendle Borough Council,Economic Growth,Supplies and Services,LCC Levy (Admins Costs),4419,MARSTON (HOLDINGS) LIMITED,A0094273,11/01/2024,ECO0338715,310,N,,N,N
Pendle Borough Council,Housing & Environmental Health,Premises Related Expense,Bldgs : R & M : Abnormal,2002,SOUTHFIELD CONSTRUCTION,A0094294,18/01/2024,HEH0338810,220,N,,N,N
Pendle Borough Council,Housing & Environmental Health,Capital Costs,Ren Grant : 1996 Act,ch22,SOUTHFIELD CONSTRUCTION,A0094294,11/01/2024,HEH0338513,7772.2,N,,N,N
Pendle Borough Council,Housing & Environmental Health,Supplies and Services,Other Expenses,4705,MICHAEL PAGE INTERNATIONAL RECRUITMENT LTD,A0094988,11/01/2024,HEH0338509,259.98,N,,N,N
Pendle Borough Council,Housing & Environmental Health,Supplies and Services,Other Expenses,4705,MICHAEL PAGE INTERNATIONAL RECRUITMENT LTD,A0094988,18/01/2024,HEH0338650,389.97,N,,N,N
Pendle Borough Council,Housing & Environmental Health,Supplies and Services,Other Expenses,4705,MICHAEL PAGE INTERNATIONAL RECRUITMENT LTD,A0094988,11/01/2024,HEH0338507,649.95,N,,N,N
Pendle Borough Council,Housing & Environmental Health,Supplies and Services,Other Expenses,4705,MICHAEL PAGE INTERNATIONAL RECRUITMENT LTD,A0094988,11/01/2024,HEH0338508,649.95,N,,N,N
Pendle Borough Council,Housing & Environmental Health,Supplies and Services,Other Expenses,4705,MICHAEL PAGE INTERNATIONAL RECRUITMENT LTD,A0094988,25/01/2024,HEH0339058,649.95,N,,N,N
Pendle Borough Council,Housing & Environmental Health,Supplies and Services,Other Expenses,4705,MICHAEL PAGE INTERNATIONAL RECRUITMENT LTD,A0094988,25/01/2024,HEH0339059,649.95,N,,N,N
Pendle Borough Council,Housing & Environmental Health,Supplies and Services,Other Expenses,4705,MICHAEL PAGE INTERNATIONAL RECRUITMENT LTD,A0094988,25/01/2024,HEH0338975,742.8,N,,N,N
Pendle Borough Council,Housing & Environmental Health,Supplies and Services,Other Expenses,4705,MICHAEL PAGE INTERNATIONAL RECRUITMENT LTD,A0094988,18/01/2024,HEH0338852,649.95,N,,N,N
Pendle Borough Council,Policy & Commissioning,Supplies and Services,Children`s holiday activities,4716,BODIES IN MOTION PENDLE LTD,A0095079,18/01/2024,POL0338655,350,N,,N,N
Pendle Borough Council,Economic Growth,Supplies and Services,Computer Charges,4509,INNOVYZE,A0095637,25/01/2024,ECO0338889,2809,N,,N,N
Pendle Borough Council,Housing & Environmental Health,Supplies and Services,Other Expenses,4705,COLNE YOUTH ACTION GROUP,A0096017,18/01/2024,HEH0338667,414.28,N,,N,N
Pendle Borough Council,Economic Growth,Supplies and Services,Grant Funding,4737,COLNE YOUTH ACTION GROUP,A0096017,25/01/2024,ECO0338883,32491.12,N,,N,N
Pendle Borough Council,Housing & Environmental Health,Capital Costs,Ren Grant : 1996 Act,CH22,POLLOCK LIFTS,A0096020,25/01/2024,HEH0338958,11406,N,,N,N
Pendle Borough Council,Housing & Environmental Health,Capital Costs,Ren Grant : 1996 Act,CH22,POLLOCK LIFTS,A0096020,18/01/2024,HEH0338809,16159,N,,N,N
Pendle Borough Council,Finance,Agency Staff,Emp : Agency Wages,1004,GATENBY SANDERSON,A0096387,04/01/2024,FIN0338584,5145,N,,N,N
Pendle Borough Council,Finance,Agency Staff,Emp : Agency Wages,1004,GATENBY SANDERSON,A0096387,18/01/2024,FIN0338918,5145,N,,N,N
Pendle Borough Council,Finance,Agency Staff,Emp : Agency Wages,1004,GATENBY SANDERSON,A0096387,25/01/2024,FIN0339061,5145,N,,N,N
Pendle Borough Council,Finance,Agency Staff,Emp : Agency Wages,1004,GATENBY SANDERSON,A0096387,25/01/2024,FIN0339062,5145,N,,N,N
Pendle Borough Council,Policy & Commissioning,Supplies and Services,Children`s holiday activities,4716,FUNDA,A0096411,25/01/2024,POL0338928,4770,N,,N,N
Pendle Borough Council,Policy & Commissioning,Supplies and Services,Children`s holiday activities,4716,HARRINGTONS LEARNING CENTRE,A0096412,25/01/2024,POL0338930,1080,N,,N,N
Pendle Borough Council,Policy & Commissioning,Supplies and Services,Children`s holiday activities,4716,STAGE DOOR,A0096413,25/01/2024,POL0338926,96,N,,N,N
Pendle Borough Council,Policy & Commissioning,Supplies and Services,Children`s holiday activities,4716,STAGE DOOR,A0096413,25/01/2024,POL0338927,864,N,,N,N
Pendle Borough Council,Property Services,Premises Related Expense,Gas,2202,E.ON NEXT ENERGY LIMITED,A0096428,25/01/2024,EST0339032,31.05,N,,N,N
Pendle Borough Council,Property Services,Premises Related Expense,Electricity,2203,E.ON NEXT ENERGY LIMITED,A0096428,25/01/2024,EST0339035,34,N,,N,N
Pendle Borough Council,Property Services,Premises Related Expense,Electricity,2203,E.ON NEXT ENERGY LIMITED,A0096428,11/01/2024,EST0338731,133.02,N,,N,N
Pendle Borough Council,Property Services,Premises Related Expense,Electricity,2203,E.ON NEXT ENERGY LIMITED,A0096428,11/01/2024,EST0338728,30,N,,N,N
Pendle Borough Council,Property Services,Premises Related Expense,Electricity,2203,E.ON NEXT ENERGY LIMITED,A0096428,11/01/2024,EST0338729,30,N,,N,N
Pendle Borough Council,Property Services,Premises Related Expense,Electricity,2203,E.ON NEXT ENERGY LIMITED,A0096428,11/01/2024,EST0338730,30,N,,N,N
Pendle Borough Council,Property Services,Premises Related Expense,Electricity,2203,E.ON NEXT ENERGY LIMITED,A0096428,25/01/2024,EST0339034,31,N,,N,N
Pendle Borough Council,Property Services,Premises Related Expense,Electricity,2203,E.ON NEXT ENERGY LIMITED,A0096428,04/01/2024,EST0338525,86.48,N,,N,N
Pendle Borough Council,Policy & Commissioning,Supplies and Services,Children`s holiday activities,4716,SPORTSCOOL LTD,A0096429,25/01/2024,POL0339042,561.2,N,,N,N
Pendle Borough Council,Operational Services,Indirect Employee Expenses,Training,1211,R HEWITT LTD,A0096478,04/01/2024,OPS0338591,1225,N,,N,N
Pendle Borough Council,Operational Services,Indirect Employee Expenses,Training,1211,R HEWITT LTD,A0096478,18/01/2024,OPS0338822,1700,N,,N,N
Pendle Borough Council,Operational Services,Premises Related Expense,Grounds : R & M : Day to Day : Routine,2101,JCB PRICE & SON LTD,A0096491,18/01/2024,OPS0338830,5300,N,,N,N
Pendle Borough Council,Operational Services,Premises Related Expense,Grounds : R & M : Day to Day : Routine,2101,BANNISTER HALL LIMITED,A0096507,18/01/2024,OPS0338820,95,N,,N,N
Pendle Borough Council,Operational Services,Supplies and Services,Other Expenses,4705,BANNISTER HALL LIMITED,A0096507,04/01/2024,OPS0338599,8.14,N,,N,N
Pendle Borough Council,Directorate,Supplies and Services,Consultants Fees,4401,JJG CONSULTANCY & EXECUTIVE COACHING SERVICES LTD,A0096573,04/01/2024,DIR0338563,3450,N,,N,N
Pendle Borough Council,Directorate,Supplies and Services,Seminars etc All Costs,4601,JJG CONSULTANCY & EXECUTIVE COACHING SERVICES LTD,A0096573,04/01/2024,DIR0338562,230,N,,N,N
Pendle Borough Council,"Planning, Building Control & Regulatory Services",,Other Income : Non-VATable,9303,REDACT - PERSONAL DATA,A0096701,25/01/2024,PBC0338977,49.88,N,,N,N
Pendle Borough Council,Policy & Commissioning,Supplies and Services,Children`s holiday activities,4716,ABSOLUTE FUTBOL LTD,A0096761,25/01/2024,POL0338929,1600,N,,N,N
Pendle Borough Council,Property Services,Premises Related Expense,Service Charge,2702,B1 YOUR SPACE LTD,A0096763,04/01/2024,EST0338520,4750,N,,N,N
Pendle Borough Council,Operational Services,Transport Related Expense,Diesel Oil,3202,NWF FUELS,A0096773,11/01/2024,OPS0338645,2350,N,,N,N
Pendle Borough Council,Finance,Supplies and Services,Grant Funding,4737,REDACT - PERSONAL DATA,A0096806,12/01/2024,FIN0338752,125,N,,N,N
Pendle Borough Council,Finance,Supplies and Services,Grant Funding,4737,REDACT - PERSONAL DATA,A0096806,12/01/2024,FIN0338752,500,N,,N,N
Pendle Borough Council,Finance,Supplies and Services,Grant Funding,4737,REDACT - PERSONAL DATA,A0096808,12/01/2024,FIN0338753,125,N,,N,N
Pendle Borough Council,Finance,Supplies and Services,Grant Funding,4737,REDACT - PERSONAL DATA,A0096808,12/01/2024,FIN0338753,500,N,,N,N
Pendle Borough Council,Finance,Supplies and Services,Grant Funding,4737,REDACT - PERSONAL DATA,A0096819,12/01/2024,FIN0338754,125,N,,N,N
Pendle Borough Council,Finance,Supplies and Services,Grant Funding,4737,REDACT - PERSONAL DATA,A0096819,12/01/2024,FIN0338754,500,N,,N,N
Pendle Borough Council,Finance,Supplies and Services,Grant Funding,4737,REDACT - PERSONAL DATA,A0096841,12/01/2024,FIN0338775,125,N,,N,N
Pendle Borough Council,Finance,Supplies and Services,Grant Funding,4737,REDACT - PERSONAL DATA,A0096841,12/01/2024,FIN0338776,125,N,,N,N
Pendle Borough Council,Finance,Supplies and Services,Grant Funding,4737,REDACT - PERSONAL DATA,A0096841,12/01/2024,FIN0338775,350,N,,N,N
Pendle Borough Council,Finance,Supplies and Services,Grant Funding,4737,REDACT - PERSONAL DATA,A0096841,12/01/2024,FIN0338776,350,N,,N,N
Pendle Borough Council,Finance,Supplies and Services,Other Expenses,4705,POST OFFICE LTD,A0096844,18/01/2024,FIN0338908,663.36,N,,N,N
Pendle Borough Council,Finance,Supplies and Services,Grant Funding,4737,REDACT - PERSONAL DATA,A0096866,12/01/2024,FIN0338755,125,N,,N,N
Pendle Borough Council,Finance,Supplies and Services,Grant Funding,4737,REDACT - PERSONAL DATA,A0096866,12/01/2024,FIN0338755,500,N,,N,N
Pendle Borough Council,Finance,Supplies and Services,Grant Funding,4737,REDACT - PERSONAL DATA,A0096872,12/01/2024,FIN0338756,125,N,,N,N
Pendle Borough Council,Finance,Supplies and Services,Grant Funding,4737,REDACT - PERSONAL DATA,A0096872,12/01/2024,FIN0338756,500,N,,N,N
Pendle Borough Council,Finance,Supplies and Services,Grant Funding,4737,REDACT - PERSONAL DATA,A0096893,12/01/2024,FIN0338757,125,N,,N,N
Pendle Borough Council,Finance,Supplies and Services,Grant Funding,4737,REDACT - PERSONAL DATA,A0096893,12/01/2024,FIN0338757,500,N,,N,N
Pendle Borough Council,Human Resources,Indirect Employee Expenses,Recruitment,1221,NAVIGATE NDC,A0096897,18/01/2024,PER0338805,7797,N,,N,N
Pendle Borough Council,Finance,Supplies and Services,Grant Funding,4737,REDACT - PERSONAL DATA,A0096916,12/01/2024,FIN0338758,125,N,,N,N
Pendle Borough Council,Finance,Supplies and Services,Grant Funding,4737,REDACT - PERSONAL DATA,A0096916,12/01/2024,FIN0338758,500,N,,N,N
Pendle Borough Council,Property Services,Capital Costs,Capital : Payments,CD14,BUILDING TECHNOLOGY SYSTEMS LTD,A0096928,18/01/2024,EST0338900,800,N,,N,N
Pendle Borough Council,Operational Services,Premises Related Expense,Bldgs : R & M : Day To Day,2001,NORMANTON SCREENPRINT,A0096932,25/01/2024,OPS0338991,298.15,N,,N,N
Pendle Borough Council,Operational Services,Capital Costs,Capital : Payments,CD14,THE CDS GROUP,A0096940,11/01/2024,OPS0338608,350,N,,N,N
Pendle Borough Council,Operational Services,Capital Costs,Capital : Payments,CD14,THE CDS GROUP,A0096940,11/01/2024,OPS0338608,650,N,,N,N
Pendle Borough Council,Operational Services,Capital Costs,Capital : Payments,CD14,THE CDS GROUP,A0096940,11/01/2024,OPS0338609,1250,N,,N,N
Pendle Borough Council,Operational Services,Capital Costs,Capital : Payments,CD14,THE CDS GROUP,A0096940,11/01/2024,OPS0338608,2925,N,,N,N
Pendle Borough Council,Finance,Supplies and Services,Grant Funding,4737,REDACT - PERSONAL DATA,A0096978,12/01/2024,FIN0338759,125,N,,N,N
Pendle Borough Council,Finance,Supplies and Services,Grant Funding,4737,REDACT - PERSONAL DATA,A0096978,12/01/2024,FIN0338759,500,N,,N,N
Pendle Borough Council,Finance,Supplies and Services,Grant Funding,4737,REDACT - PERSONAL DATA,A0096980,12/01/2024,FIN0338760,125,N,,N,N
Pendle Borough Council,Finance,Supplies and Services,Grant Funding,4737,REDACT - PERSONAL DATA,A0096980,12/01/2024,FIN0338760,500,N,,N,N
Pendle Borough Council,Finance,Supplies and Services,Grant Funding,4737,REDACT - PERSONAL DATA,A0096980,12/01/2024,FIN0338761,1200,N,,N,N
Pendle Borough Council,Economic Growth,Supplies and Services,Consultants Fees,4401,RAISE PARTNERSHIP LIMITED,A0096986,11/01/2024,ECO0338679,5425,N,,N,N
Pendle Borough Council,Economic Growth,Supplies and Services,Consultants Fees,4401,RAISE PARTNERSHIP LIMITED,A0096986,11/01/2024,ECO0338678,274.5,N,,N,N
Pendle Borough Council,Economic Growth,Supplies and Services,Consultants Fees,4401,RAISE PARTNERSHIP LIMITED,A0096986,11/01/2024,ECO0338681,1250,N,,N,N
Pendle Borough Council,Economic Growth,Supplies and Services,Consultants Fees,4401,RAISE PARTNERSHIP LIMITED,A0096986,11/01/2024,ECO0338677,9652.5,N,,N,N
Pendle Borough Council,Economic Growth,Capital Costs,Consultancy,CE45,RAISE PARTNERSHIP LIMITED,A0096986,11/01/2024,ECO0338680,1950,N,,N,N
Pendle Borough Council,Finance,Supplies and Services,Grant Funding,4737,REDACT - PERSONAL DATA,A0097003,12/01/2024,FIN0338762,125,N,,N,N
Pendle Borough Council,Finance,Supplies and Services,Grant Funding,4737,REDACT - PERSONAL DATA,A0097003,12/01/2024,FIN0338762,350,N,,N,N
Pendle Borough Council,Operational Services,Transport Related Expense,Tprt : Repairs : General,3105,SIXIS Technology Ltd,A0097018,04/01/2024,OPS0338594,458.8,N,,N,N
Pendle Borough Council,Operational Services,Transport Related Expense,Tprt : Annual Hire Charge,3601,CAR HIRE DAY OF SWANSEA LTD,A0097023,25/01/2024,OPS0338986,374.1,N,,N,N
Pendle Borough Council,Operational Services,Transport Related Expense,Tprt : Annual Hire Charge,3601,CAR HIRE DAY OF SWANSEA LTD,A0097023,04/01/2024,OPS0338574,386.57,N,,N,N
Pendle Borough Council,Directorate,Supplies and Services,Seminars etc All Costs,4601,RWTA LTD,A0097140,11/01/2024,DIR0338739,4000,N,,N,N
Pendle Borough Council,Economic Growth,Supplies and Services,Consultants Fees,4401,DCR SURVEYING AND ESTIMATING SERVICES LTD,A0097173,11/01/2024,ECO0338682,1500,N,,N,N
Pendle Borough Council,Finance,Capital Costs,Capital: Design Fees,CD53,DCR SURVEYING AND ESTIMATING SERVICES LTD,A0097173,11/01/2024,FIN0338745,2842.45,N,,N,N
Pendle Borough Council,Finance,Capital Costs,Capital: Design Fees,CD53,DCR SURVEYING AND ESTIMATING SERVICES LTD,A0097173,04/01/2024,FIN0338582,3640.53,N,,N,N
Pendle Borough Council,Finance,Capital Costs,Capital: Design Fees,CD53,DCR SURVEYING AND ESTIMATING SERVICES LTD,A0097173,11/01/2024,FIN0338746,967.35,N,,N,N
Pendle Borough Council,Finance,Capital Costs,Capital: Design Fees,CD53,DCR SURVEYING AND ESTIMATING SERVICES LTD,A0097173,04/01/2024,FIN0338583,1126.51,N,,N,N
Pendle Borough Council,Finance,Supplies and Services,Grant Funding,4737,REDACT - PERSONAL DATA,A0097338,12/01/2024,FIN0338763,125,N,,N,N
Pendle Borough Council,Finance,Supplies and Services,Grant Funding,4737,REDACT - PERSONAL DATA,A0097338,12/01/2024,FIN0338763,350,N,,N,N
Pendle Borough Council,Finance,Supplies and Services,Grant Funding,4737,REDACT - PERSONAL DATA,A0097339,12/01/2024,FIN0338764,125,N,,N,N
Pendle Borough Council,Finance,Supplies and Services,Grant Funding,4737,REDACT - PERSONAL DATA,A0097339,12/01/2024,FIN0338764,350,N,,N,N
Pendle Borough Council,Operational Services,Transport Related Expense,Tprt : Repairs : General,3105,STUART TAYLOR INTERNATIONAL LTD,A0097341,18/01/2024,OPS0338632,46,N,,N,N
Pendle Borough Council,Operational Services,Capital Costs,Capital : Purchase,CD01,STUART TAYLOR INTERNATIONAL LTD,A0097341,25/01/2024,OPS0338990,2295,N,,N,N
Pendle Borough Council,Finance,Supplies and Services,Grant Funding,4737,REDACT - PERSONAL DATA,A0097415,12/01/2024,FIN0338765,125,N,,N,N
Pendle Borough Council,Finance,Supplies and Services,Grant Funding,4737,REDACT - PERSONAL DATA,A0097415,12/01/2024,FIN0338765,500,N,,N,N
Pendle Borough Council,Finance,Capital Costs,Capital: Construction: Conversion/Refu,cd57,READSTONE CONSTRUCTION,A0097418,11/01/2024,FIN0338747,122541.34,N,,N,N
Pendle Borough Council,Finance,Supplies and Services,Grant Funding,4737,REDACT - PERSONAL DATA,A0097419,12/01/2024,FIN0338766,125,N,,N,N
Pendle Borough Council,Finance,Supplies and Services,Grant Funding,4737,REDACT - PERSONAL DATA,A0097419,12/01/2024,FIN0338766,350,N,,N,N
Pendle Borough Council,Housing & Environmental Health,Supplies and Services,Other Expenses,4705,SHP GROUP LIMITED,A0097438,25/01/2024,HEH0338873,780,N,,N,N
Pendle Borough Council,Housing & Environmental Health,Supplies and Services,Other Expenses,4705,SHP GROUP LIMITED,A0097438,25/01/2024,HEH0338963,780,N,,N,N
Pendle Borough Council,Housing & Environmental Health,Supplies and Services,Other Expenses,4705,SHP GROUP LIMITED,A0097438,25/01/2024,HEH0338965,780,N,,N,N
Pendle Borough Council,Housing & Environmental Health,Supplies and Services,Other Expenses,4705,SHP GROUP LIMITED,A0097438,11/01/2024,HEH0338716,840,N,,N,N
Pendle Borough Council,Housing & Environmental Health,Supplies and Services,Other Expenses,4705,SHP GROUP LIMITED,A0097438,11/01/2024,HEH0338717,840,N,,N,N
Pendle Borough Council,Housing & Environmental Health,Supplies and Services,Other Expenses,4705,SHP GROUP LIMITED,A0097438,25/01/2024,HEH0338964,1000,N,,N,N
Pendle Borough Council,Housing & Environmental Health,Supplies and Services,Other Expenses,4705,SHP GROUP LIMITED,A0097438,11/01/2024,HEH0338688,1200,N,,N,N
Pendle Borough Council,Operational Services,Supplies and Services,Sub-Contractors,4007,PETER`S LANDSCAPING & GARDEN SERVICE,A0097442,25/01/2024,OPS0338983,250,N,,N,N
Pendle Borough Council,Operational Services,Supplies and Services,Sub-Contractors,4007,PETER`S LANDSCAPING & GARDEN SERVICE,A0097442,04/01/2024,OPS0338570,350,N,,N,N
Pendle Borough Council,Operational Services,Agency Costs,Refuse Collection DLO,5005,PETER`S LANDSCAPING & GARDEN SERVICE,A0097442,25/01/2024,OPS0338983,200,N,,N,N
Pendle Borough Council,Finance,Supplies and Services,Grant Funding,4737,REDACT - PERSONAL DATA,A0097448,12/01/2024,FIN0338767,125,N,,N,N
Pendle Borough Council,Finance,Supplies and Services,Grant Funding,4737,REDACT - PERSONAL DATA,A0097448,12/01/2024,FIN0338767,350,N,,N,N
Pendle Borough Council,Human Resources,Supplies and Services,Other Expenses,4705,AVC WISE LTD,A0097461,11/01/2024,PER0338671,178.11,N,,N,N
Pendle Borough Council,Directorate,Supplies and Services,Seminars etc All Costs,4601,OLD FASHIONED CATERING,A0097465,18/01/2024,DIR0338921,240,N,,N,N
Pendle Borough Council,Policy & Commissioning,Supplies and Services,Children`s holiday activities,4716,OLD FASHIONED CATERING,A0097465,25/01/2024,POL0338931,2175,N,,N,N
Pendle Borough Council,Finance,Capital Costs,Capital: Construction: Conversion/Refu,cd57,BAILEY CONTRACTS LTD,A0097470,18/01/2024,FIN0338923,31277.78,N,,N,N
Pendle Borough Council,Legal & Democratic Services,Supplies and Services,Meeting Expenses,4610,BELLYFLOP TV LTD,A0097473,11/01/2024,LAD0338557,1782,N,,N,N
Pendle Borough Council,Operational Services,Supplies and Services,Publicity & advertisement,4704,PIONEER PRINT SOLUTIONS,A0097489,04/01/2024,OPS0338571,327,N,,N,N
Pendle Borough Council,Operational Services,Transport Related Expense,Tprt : Repairs : General,3105,TUDOR (UK) LTD t/a TUDOR ENVIRONMENTAL,A0097501,04/01/2024,OPS0338596,400,N,,N,N
Pendle Borough Council,Operational Services,Capital Costs,Capital : Purchase,cd01,TUDOR (UK) LTD t/a TUDOR ENVIRONMENTAL,A0097501,04/01/2024,OPS0338596,9791.8,N,,N,N
Pendle Borough Council,Operational Services,Supplies and Services,Telephones : Direct,4502,PROFESSIONAL WITNESSES LTD,A0097503,25/01/2024,OPS0338904,199,N,,N,N
Pendle Borough Council,Operational Services,Transport Related Expense,Hire of Plant,3502,PNEUMATIC AND COMPRESSOR ENGINEERING LTD,A0097513,04/01/2024,OPS0338592,953.02,N,,N,N
Pendle Borough Council,Housing & Environmental Health,,Housing Impts/Cap Repairs,0104,SPENCER JORDAN PLUMBING AND HEATING,A0097517,25/01/2024,HEH0338924,1450,N,,N,N
Pendle Borough Council,Housing & Environmental Health,,Housing Impts/Cap Repairs,0104,SPENCER JORDAN PLUMBING AND HEATING,A0097517,25/01/2024,HEH0338925,1850,N,,N,N
Pendle Borough Council,Housing & Environmental Health,,Housing Impts/Cap Repairs,0104,REDACT - PERSONAL DATA,A0097527,11/01/2024,HEH0338506,4800,N,,N,N
Pendle Borough Council,Housing & Environmental Health,Supplies and Services,Other Expenses,4705,JL DEVELOPMENTS & CO UK,A0097528,11/01/2024,HEH0338690,1500,N,,N,N
Pendle Borough Council,Housing & Environmental Health,Supplies and Services,Other Expenses,4705,REDACT - PERSONAL DATA,A0097529,11/01/2024,HEH0338691,500,N,,N,N
Pendle Borough Council,Finance,Supplies and Services,Grant Funding,4737,REDACT - PERSONAL DATA,A0097530,12/01/2024,FIN0338769,125,N,,N,N
Pendle Borough Council,Finance,Supplies and Services,Grant Funding,4737,REDACT - PERSONAL DATA,A0097530,12/01/2024,FIN0338770,125,N,,N,N
Pendle Borough Council,Finance,Supplies and Services,Grant Funding,4737,REDACT - PERSONAL DATA,A0097530,12/01/2024,FIN0338768,350,N,,N,N
Pendle Borough Council,Finance,Supplies and Services,Grant Funding,4737,REDACT - PERSONAL DATA,A0097530,12/01/2024,FIN0338769,350,N,,N,N
Pendle Borough Council,Finance,Supplies and Services,Grant Funding,4737,REDACT - PERSONAL DATA,A0097530,12/01/2024,FIN0338770,350,N,,N,N
Pendle Borough Council,Finance,Supplies and Services,Grant Funding,4737,REDACT - PERSONAL DATA,A0097531,12/01/2024,FIN0338771,125,N,,N,N
Pendle Borough Council,Finance,Supplies and Services,Grant Funding,4737,REDACT - PERSONAL DATA,A0097531,12/01/2024,FIN0338772,125,N,,N,N
Pendle Borough Council,Finance,Supplies and Services,Grant Funding,4737,REDACT - PERSONAL DATA,A0097531,12/01/2024,FIN0338771,350,N,,N,N
Pendle Borough Council,Finance,Supplies and Services,Grant Funding,4737,REDACT - PERSONAL DATA,A0097531,12/01/2024,FIN0338772,350,N,,N,N
Pendle Borough Council,Finance,Supplies and Services,Grant Funding,4737,REDACT - PERSONAL DATA,A0097532,12/01/2024,FIN0338773,125,N,,N,N
Pendle Borough Council,Finance,Supplies and Services,Grant Funding,4737,REDACT - PERSONAL DATA,A0097532,12/01/2024,FIN0338774,125,N,,N,N
Pendle Borough Council,Finance,Supplies and Services,Grant Funding,4737,REDACT - PERSONAL DATA,A0097532,12/01/2024,FIN0338773,350,N,,N,N
Pendle Borough Council,Finance,Supplies and Services,Grant Funding,4737,REDACT - PERSONAL DATA,A0097532,12/01/2024,FIN0338774,350,N,,N,N
Pendle Borough Council,Housing & Environmental Health,Supplies and Services,Other Expenses,4705,PARK MILL PROPERTIES LTD,A0097534,18/01/2024,HEH0338808,575,N,,N,N
Pendle Borough Council,Finance,Supplies and Services,Grant Funding,4737,REDACT - PERSONAL DATA,A0097536,18/01/2024,FIN0338915,75,N,,N,N
Pendle Borough Council,Finance,Supplies and Services,Grant Funding,4737,REDACT - PERSONAL DATA,A0097537,18/01/2024,FIN0338916,75,N,,N,N
Pendle Borough Council,Finance,Supplies and Services,Grant Funding,4737,REDACT - PERSONAL DATA,A0097538,18/01/2024,FIN0338917,75,N,,N,N
Pendle Borough Council,Housing & Environmental Health,Supplies and Services,Other Expenses,4705,CAP DEBT CENTRE,A0097540,25/01/2024,HEH0339054,2500,N,,N,N
Pendle Borough Council,Finance,Premises Related Expense,Water & Sewerage,2501,ADVANCED DEMAND SIDE MANAGEMENT LTD,A0097541,25/01/2024,FIN0339094,56.41,N,,N,N
Pendle Borough Council,Finance,Premises Related Expense,Water & Sewerage,2501,ADVANCED DEMAND SIDE MANAGEMENT LTD,A0097541,25/01/2024,FIN0339094,10.89,N,,N,N
Pendle Borough Council,Finance,Premises Related Expense,Water & Sewerage,2501,ADVANCED DEMAND SIDE MANAGEMENT LTD,A0097541,25/01/2024,FIN0339094,7.92,N,,N,N
Pendle Borough Council,Finance,Premises Related Expense,Water & Sewerage,2501,ADVANCED DEMAND SIDE MANAGEMENT LTD,A0097541,25/01/2024,FIN0339094,47.87,N,,N,N
Pendle Borough Council,Finance,Premises Related Expense,Water & Sewerage,2501,ADVANCED DEMAND SIDE MANAGEMENT LTD,A0097541,25/01/2024,FIN0339094,134.87,N,,N,N
Pendle Borough Council,Finance,Premises Related Expense,Water & Sewerage,2501,ADVANCED DEMAND SIDE MANAGEMENT LTD,A0097541,25/01/2024,FIN0339094,24.58,N,,N,N
Pendle Borough Council,Finance,Premises Related Expense,Water & Sewerage,2501,ADVANCED DEMAND SIDE MANAGEMENT LTD,A0097541,25/01/2024,FIN0339094,39.12,N,,N,N
Pendle Borough Council,Finance,Premises Related Expense,Water & Sewerage,2501,ADVANCED DEMAND SIDE MANAGEMENT LTD,A0097541,25/01/2024,FIN0339094,9.06,N,,N,N
Pendle Borough Council,Finance,Premises Related Expense,Water & Sewerage,2501,ADVANCED DEMAND SIDE MANAGEMENT LTD,A0097541,25/01/2024,FIN0339094,6.97,N,,N,N
Pendle Borough Council,Finance,Premises Related Expense,Water & Sewerage,2501,ADVANCED DEMAND SIDE MANAGEMENT LTD,A0097541,25/01/2024,FIN0339094,6.41,N,,N,N
Pendle Borough Council,Finance,Premises Related Expense,Water & Sewerage,2501,ADVANCED DEMAND SIDE MANAGEMENT LTD,A0097541,25/01/2024,FIN0339094,8.19,N,,N,N
Pendle Borough Council,Finance,Premises Related Expense,Water & Sewerage,2501,ADVANCED DEMAND SIDE MANAGEMENT LTD,A0097541,25/01/2024,FIN0339094,1.52,N,,N,N
Pendle Borough Council,Finance,Premises Related Expense,Water & Sewerage,2501,ADVANCED DEMAND SIDE MANAGEMENT LTD,A0097541,25/01/2024,FIN0339094,0.59,N,,N,N
Pendle Borough Council,Finance,Premises Related Expense,Water & Sewerage,2501,ADVANCED DEMAND SIDE MANAGEMENT LTD,A0097541,25/01/2024,FIN0339094,68.83,N,,N,N
Pendle Borough Council,Finance,Premises Related Expense,Water & Sewerage,2501,ADVANCED DEMAND SIDE MANAGEMENT LTD,A0097541,25/01/2024,FIN0339094,64.49,N,,N,N
Pendle Borough Council,Finance,Premises Related Expense,Water & Sewerage,2501,ADVANCED DEMAND SIDE MANAGEMENT LTD,A0097541,25/01/2024,FIN0339094,12.78,N,,N,N
Pendle Borough Council,Finance,Premises Related Expense,Water & Sewerage,2501,ADVANCED DEMAND SIDE MANAGEMENT LTD,A0097541,25/01/2024,FIN0339094,28.5,N,,N,N
Pendle Borough Council,Finance,Premises Related Expense,Water & Sewerage,2501,ADVANCED DEMAND SIDE MANAGEMENT LTD,A0097541,25/01/2024,FIN0339094,134.87,N,,N,N
Pendle Borough Council,Finance,Premises Related Expense,Water & Sewerage,2501,ADVANCED DEMAND SIDE MANAGEMENT LTD,A0097541,25/01/2024,FIN0339094,12.78,N,,N,N
Pendle Borough Council,Finance,Premises Related Expense,Water & Sewerage,2501,ADVANCED DEMAND SIDE MANAGEMENT LTD,A0097541,25/01/2024,FIN0339094,64.49,N,,N,N
Pendle Borough Council,Finance,Premises Related Expense,Water & Sewerage,2501,ADVANCED DEMAND SIDE MANAGEMENT LTD,A0097541,25/01/2024,FIN0339094,6.34,N,,N,N
Pendle Borough Council,Finance,Premises Related Expense,Water & Sewerage,2501,ADVANCED DEMAND SIDE MANAGEMENT LTD,A0097541,25/01/2024,FIN0339094,85.02,N,,N,N
Pendle Borough Council,Finance,Premises Related Expense,Water & Sewerage,2501,ADVANCED DEMAND SIDE MANAGEMENT LTD,A0097541,25/01/2024,FIN0339094,6.93,N,,N,N
Pendle Borough Council,Finance,Premises Related Expense,Water & Sewerage,2501,ADVANCED DEMAND SIDE MANAGEMENT LTD,A0097541,25/01/2024,FIN0339094,0.18,N,,N,N
Pendle Borough Council,Finance,Premises Related Expense,Water & Sewerage,2501,ADVANCED DEMAND SIDE MANAGEMENT LTD,A0097541,25/01/2024,FIN0339094,99.16,N,,N,N
Pendle Borough Council,Finance,Premises Related Expense,Water & Sewerage,2501,ADVANCED DEMAND SIDE MANAGEMENT LTD,A0097541,25/01/2024,FIN0339094,12.33,N,,N,N
Pendle Borough Council,Finance,Premises Related Expense,Water & Sewerage,2501,ADVANCED DEMAND SIDE MANAGEMENT LTD,A0097541,25/01/2024,FIN0339094,1.55,N,,N,N
Pendle Borough Council,Finance,Premises Related Expense,Water & Sewerage,2501,ADVANCED DEMAND SIDE MANAGEMENT LTD,A0097541,25/01/2024,FIN0339094,8.5,N,,N,N
Pendle Borough Council,Finance,Premises Related Expense,Water & Sewerage,2501,ADVANCED DEMAND SIDE MANAGEMENT LTD,A0097541,25/01/2024,FIN0339094,25.2,N,,N,N
Pendle Borough Council,Finance,Premises Related Expense,Water & Sewerage,2501,ADVANCED DEMAND SIDE MANAGEMENT LTD,A0097541,25/01/2024,FIN0339094,499.21,N,,N,N
Pendle Borough Council,Finance,Premises Related Expense,Water & Sewerage,2501,ADVANCED DEMAND SIDE MANAGEMENT LTD,A0097541,25/01/2024,FIN0339094,97.61,N,,N,N
